Cogmind - Beta 11 @@@ ROGUE MODE // 2022.03.30 @ 15:42:50 Player: aperiodic Result: Escaped! Performance ------------- Evolutions (9) 4500 Regions Visited (29) 5800 Robots Destroyed (326) 1630 Value Destroyed (13924) 13924 Prototype IDs (95) 1900 Alien Tech Used (6) 1200 Bonus (11797) 11797 TOTAL SCORE: 40751 Bonus ------- High Alert Combat Kills 2737 Follower Combat Kills 4005 Network Hubs Disabled 400 Met Data Miner 300 Met Imprinter 300 Was Imprinted 300 Met Zhirov 300 Built Enhanced Grunts 300 A7 Reached Mainframe 300 Met R17 at Cetus 500 Win 3000 Friendly Fire -645 Cogmind --------- Core Integrity 1328/1600 Matter 157/300 Energy 454/1150 System Corruption 9% Temperature Critical (507) Movement Flying (34) Location To Epsilon Eridani Parts ------- > --- POWER (2) -------- Micro Antimatter Reactor Micro Antimatter Reactor > --- PROPULSION (8) --- Nuclear Pulse Array Impulse Thruster Array Impulse Thruster Array Impulse Thruster Array > --- UTILITY (13) ----- Experimental Heat Sink Medium Storage Unit Energy Well Zionite Biocell Advanced Weight Redist. System Long-range Sensor Array Advanced Signal Interpreter Experimental Targeting Computer Experimental Melee Analysis Suite Graphene Brace System Shield > --- WEAPON (3) ------- Core Cannon Advanced Remote Datajack > --- INVENTORY (10) --- Nuclear Pulse Array Energy Well (350) Z-Drone Bay (2/2) Phasing AFG Dimensional Node Initializer Transdimensional Reconstructor EMDS Fusion Bomb Launcher Peak State ------------ > --- POWER ------------ Micro Antimatter Reactor Micro Antimatter Reactor > --- PROPULSION ------- Nuclear Pulse Array Impulse Thruster Array Impulse Thruster Array Impulse Thruster Array > --- UTILITY ---------- Experimental Heat Sink Medium Storage Unit Energy Well Zionite Biocell Advanced Weight Redist. System Long-range Sensor Array Advanced Signal Interpreter Experimental Targeting Computer Experimental Melee Analysis Suite Advanced Reaction Control System Graphene Brace System Shield > --- WEAPON ----------- Core Cannon Advanced Remote Datajack > --- INVENTORY -------- Nuclear Pulse Array Energy Well Z-Drone Bay Phasing AFG Dimensional Node Initializer Transdimensional Reconstructor EMDS Fusion Bomb Launcher [Rating: 186] Favorites ----------- Power Heavy Deuterium Engine Engine Heavy Deuterium Engine Power Core Fission Core Reactor Quantum Reactor Propulsion Armored Wheel Treads Centrium Heavy Treads Leg Myomer Leg Wheel Armored Wheel Hover Unit Combat Linear Gravjet Flight Unit Impulse Thruster Array Utility Huge Storage Unit Device Experimental Sensor Array Storage Huge Storage Unit Processor Improved Signal Interpreter Hackware Hacking Suite Protection Improved Medium Armor Plating Artifact Phase Redirector Weapon Heavy Plasma Cannon Energy Gun Improved Spread Laser Energy Cannon Heavy Plasma Cannon Ballistic Gun KE Penetrator Ballistic Cannon Heavy Gauss Cannon Launcher EMP Blaster Special Weapon Molecular Deconstructor Impact Weapon CL-ANK's Mallet Slashing Weapon Vibroblade Piercing Weapon Makeshift Spear Special Melee Weapon Datajack Build | -11 -10 -10 -9 -9 -8 -7 -7 -7 -7 -6 -6 -6 -6 -6 -5 -5 -5 -5 -5 -4 -4 -4 -4 -4 -4 -3 -3 -2 -1 ------- Run | Scr Mat Min Mat Min Mat Fac Low Low Zio Pro Fac Low Low Dat Pro Fac Upp Upp Zhi Pro Fac Ext Cet Arc Hub Res Qua Res Acc Slots Evolved 18 | . . . 2 . 2 2 . . . . 2 . . . . 2 . . . . 2 . . . . 2 . 2 2 Power 1 | . . . . . . 1 . . . . . . . . . . . . . . . . . . . . . . . Propulsion 6 | . . . . . . . . . . . 2 . . . . . . . . . 2 . . . . . . . 2 Utility 11 | . . . 2 . 2 1 . . . . . . . . . 2 . . . . . . . . . 2 . 2 . Weapon . | . . . . . . . . . . . . . . . . . . . . . . . . . . . . . . Parts Attached 635 | 8 20 1 39 10 74 32 2 18 7 11 29 . 2 . 18 57 12 3 6 9 13 28 17 8 53 37 27 85 9 Power 37 | 1 1 . 3 . 2 1 . . 1 1 1 . . . 1 2 2 . 1 . . 3 2 . 2 5 1 7 . Engine 13 | 1 1 . 3 . 2 1 . . 1 1 1 . . . . . 2 . . . . . . . . . . . . Core 4 | . . . . . . . . . . . . . . . . 1 . . . . . 2 . . . 1 . . . Reactor 20 | . . . . . . . . . . . . . . . 1 1 . . 1 . . 1 2 . 2 4 1 7 . Propulsion 105 | 2 4 1 6 . 3 2 . . . 1 5 . . . 2 7 2 1 . 5 8 11 3 1 1 6 10 20 4 Treads 8 | . . . . . . . . . . . 2 . . . . . . . . . 2 . 3 1 . . . . . Leg 46 | . . . . . . . . . . . . . . . . 2 . . . 2 6 11 . . 1 5 10 9 . Wheel 36 | 2 4 1 6 . 3 2 . . . 1 3 . . . 2 5 2 1 . 3 . . . . . 1 . . . Hover 6 | . . . . . . . . . . . . . . . . . . . . . . . . . . . . 6 . Flight 9 | . . . . . . . . . . . . . . . . . . . . . . . . . . . . 5 4 Utility 314 | 2 5 . 13 7 41 19 1 12 6 7 16 . 1 . 9 36 6 2 3 4 2 3 6 7 39 12 11 40 4 Device 170 | 1 4 . 7 4 18 7 . 6 2 4 7 . 1 . 5 17 4 2 2 1 . 3 . 3 24 8 6 32 2 Storage 20 | 1 1 . 1 . 3 1 . . . . 1 . . . 1 1 . . . 1 . . . . 1 1 1 5 1 Processor 12 | . . . . . 1 . . . . . 1 . . . 1 1 . . . . 1 . 1 . 3 . 2 1 . Hackware 9 | . . . 1 . . 1 . . . . 2 . . . . 2 . . . . . . 2 . . . . . 1 Protection 102 | . . . 4 3 19 10 1 6 4 3 5 . . . 2 15 2 . 1 2 1 . 3 4 11 3 1 2 . Artifact 1 | . . . . . . . . . . . . . . . . . . . . . . . . . . . 1 . . Weapon 179 | 3 10 . 17 3 28 10 1 6 . 2 7 . 1 . 6 12 2 . 2 . 3 11 6 . 11 14 5 18 1 Energy Gun 34 | 3 5 . 8 . . . . . . . 2 . 1 . 4 5 . . . . . . . . . 1 2 3 . Energy Cannon 54 | . 2 . . . 12 7 . 6 . 1 4 . . . 1 3 . . . . . . 1 . . 5 3 9 . Ballistic Gun 25 | . . . 4 1 7 1 . . . . . . . . . . . . . . . 2 2 . 6 2 . . . Ballistic Cannon 3 | . . . . . . . . . . . . . . . . . . . . . . 3 . . . . . . . Launcher 21 | . . . . 2 7 1 1 . . . 1 . . . 1 3 . . . . . . 2 . . 3 . . . Special Weapon 12 | . 1 . . . . . . . . . . . . . . . 1 . 1 . 1 6 1 . . . . . 1 Impact Weapon 22 | . 2 . 5 . 1 1 . . . . . . . . . . . . . . . . . . 4 3 . 6 . Slashing Weapon 3 | . . . . . . . . . . . . . . . . . . . . . 2 . . . 1 . . . . Piercing Weapon 4 | . . . . . . . . . . 1 . . . . . 1 1 . 1 . . . . . . . . . . Special Melee Weapon 1 | . . . . . 1 . . . . . . . . . . . . . . . . . . . . . . . . Unidentified Prototypes 45 | . 1 . 3 1 3 . . . 2 . 2 . 1 . 3 6 1 . 3 1 1 . 4 . 4 2 4 3 . Corrupted Parts 11 | . . . . . . . . . . 1 1 . . . . 2 1 . . 3 . . 1 1 1 . . . . System Corruption 62 | . . . . . . . . . . 5 3 . . . . 14 5 . . 14 . . 8 8 5 . . . . Parts Lost 95 | . . . 5 . 3 4 . . . . . . . . . 26 4 . . . . . . . 10 13 6 21 3 Power 14 | . . . 1 . . 1 . . . . . . . . . 4 . . . . . . . . 2 2 1 3 . Propulsion 23 | . . . 2 . 1 . . . . . . . . . . 8 . . . . . . . . 1 4 1 4 2 Utility 45 | . . . 1 . 1 2 . . . . . . . . . 9 4 . . . . . . . 7 5 4 11 1 Weapon 13 | . . . 1 . 1 1 . . . . . . . . . 5 . . . . . . . . . 2 . 3 . Highest Loss Streak 16 | . . . 2 . 2 2 . . . . . . . . . 16 4 . . . . . . . 5 7 3 6 2 To Critical Strikes . | . . . . . . . . . . . . . . . . . . . . . . . . . . . . . . Average Slot Usage (%) 90 | . 99 100 98 99 99 96 92 92 93 100 95 100 99 100 99 91 49 77 73 87 88 92 84 76 75 81 94 85 70 Engine 6 | . 14 14 11 11 9 12 7 7 8 15 12 13 12 12 7 4 3 11 7 5 5 4 . . . . . . . Reactor 2 | . . . . . . . . . . . . . . . 4 4 . . 3 5 5 5 6 10 9 6 8 7 7 Treads 1 | . . . . . . . . . . . 3 . . . . . . . . . . . 10 15 14 3 . . . Leg 4 | . . . . . . . . . . . . . . . . . . . . . 27 30 9 . . 13 26 18 . Wheel 12 | . 28 28 21 22 17 14 15 15 15 15 19 26 25 25 25 18 5 11 16 20 1 . . . . 2 . . . Device 15 | . 14 14 18 6 13 14 18 14 15 22 16 20 18 18 17 12 8 16 15 16 15 15 6 8 12 17 13 22 21 Storage 6 | . 14 14 11 11 9 7 7 7 7 7 6 6 6 6 6 5 5 5 5 5 5 5 5 5 5 4 4 5 9 Processor 11 | . . . . . 5 7 7 7 7 7 10 13 12 12 16 18 16 16 16 16 15 15 15 15 13 22 23 16 11 Hackware 3 | . . . 9 11 3 5 7 7 7 3 3 6 6 6 1 6 . . . . . . 5 . . . . . 2 Protection 8 | . . . 4 14 22 16 11 15 14 11 7 . . . . 3 1 5 5 5 4 5 8 7 9 1 3 2 . Energy Gun 3 | . 19 28 12 . . . . . . . 3 6 11 12 13 12 . . . . . . . . . . 2 2 . Energy Cannon 6 | . 7 . . . 13 11 7 13 15 13 8 6 6 6 4 1 . . . . . . 1 5 2 1 4 3 3 Ballistic Gun 1 | . . . 6 16 3 . . . . . . . . . . . . . . . . 2 6 10 3 2 . . . Naked Turns . | . . . . . . . . . . . . . . . . . . . . . . . . . . . . . . Heaviest Build 176 | 15 20 20 43 43 121 163 132 141 156 156 162 120 124 124 143 144 127 127 134 134 136 151 169 176 176 140 122 125 53 Greatest Support 240 | 26 26 20 26 24 24 24 24 24 24 24 44 44 44 44 46 46 26 36 36 52 138 150 235 240 240 160 150 170 70 Greatest Overweight (x) 33 | . . . 2 1 5 9 5 5 6 6 6 2 2 2 3 33 12 4 3 3 2 1 . . . 5 . 1 1 Average Overweight (x) 2 | . . . 1 1 3 5 4 4 5 5 3 2 2 2 2 2 9 3 3 2 . . . . . . . . . Largest Inventory Capacity 30 | 8 10 10 15 15 30 25 25 25 25 25 25 25 25 25 25 25 25 25 25 25 25 25 25 25 25 25 20 20 10 Average Capacity 21 | 7 8 10 13 15 18 24 25 25 25 25 25 25 25 25 25 25 25 25 25 25 25 25 25 25 25 23 20 15 10 Most Carried 25 | 3 8 10 15 15 20 25 25 25 25 25 25 24 24 23 25 25 25 25 25 25 25 25 25 25 25 25 20 20 10 Average Carried 21 | 1 7 8 13 14 17 21 24 25 24 24 24 24 23 23 24 24 22 24 25 24 22 24 24 24 23 22 19 15 9 Final Capacity 25 | 8 10 10 15 15 20 25 25 25 25 25 25 25 25 25 25 25 25 25 25 25 25 25 25 25 25 20 20 10 10 Final Carried 25 | 3 8 10 15 15 19 25 25 25 25 25 24 24 23 23 25 24 25 25 25 24 23 25 25 25 25 20 20 9 10 Class Distribution -------------------- 31% | Trapper-Mutant 28% | Mutant 15% | Scavenger-Mutant 5% | Scavenger-Gladiator 5% | Trapper-Assassin 3% | Commander-Mutant Dominant Class ---------------- Mutant | -10/Materials Scavenger-Mutant | -10/Mines Mutant | -9/Materials Mutant | -9/Mines Mutant | -8/Materials Mutant | -7/Factory Mutant | -7/Lower Caves Trapper-Mutant | -7/Lower Caves Trapper-Mutant | -7/Zion Trapper-Mutant | -6/Proximity Caves Trapper-Mutant | -6/Factory Trapper-Mutant | -6/Lower Caves Trapper-Mutant | -6/Lower Caves Trapper-Mutant | -6/Data Miner Trapper-Mutant | -5/Proximity Caves Trapper-Mutant | -5/Factory Trapper-Mutant | -5/Upper Caves Trapper-Mutant | -5/Upper Caves Trapper-Mutant | -5/Zhirov Trapper-Assassin | -4/Proximity Caves Trapper-Assassin | -4/Factory Commander-Mutant | -4/Extension Commander-Mutant | -4/Cetus Scavenger-Mutant | -4/Archives Scavenger-Mutant | -4/Hub_04(d) Scavenger-Mutant | -3/Research Scavenger-Gladiator | -3/Quarantine Scavenger-Gladiator | -2/Research Scavenger-Mutant | -1/Access Resources | -11 -10 -10 -9 -9 -8 -7 -7 -7 -7 -6 -6 -6 -6 -6 -5 -5 -5 -5 -5 -4 -4 -4 -4 -4 -4 -3 -3 -2 -1 ----------- Run | Scr Mat Min Mat Min Mat Fac Low Low Zio Pro Fac Low Low Dat Pro Fac Upp Upp Zhi Pro Fac Ext Cet Arc Hub Res Qua Res Acc Matter Collected 9290 | 270 200 20 701 63 1349 345 20 190 60 110 277 59 30 . 170 493 555 99 . 176 146 991 209 259 634 626 240 996 2 Remotely 82 | . . . . . . . . . . . . . . . . . 82 . . . . . . . . . . . . Salvage Created 16247 | 42 539 132 1177 125 1906 977 . 141 . 25 576 . . . 33 1159 403 112 . 212 73 56 58 311 1917 1475 1375 3415 8 Parts 771 | 8 37 6 60 10 108 54 . 9 . 1 19 . . . 3 66 7 6 . 3 2 5 1 16 79 84 51 134 2 Haulers Intercepted 20 | . 1 . 6 . 4 1 . . . . 2 . . . . 1 . . . . . . . . 2 1 1 1 . Recyclers Shooed 16 | . . 1 6 . . . . . . . 2 . . . . 1 . . . . . 1 . . . 1 . 4 . Parts Field Recycled . | . . . . . . . . . . . . . . . . . . . . . . . . . . . . . . Retrieved Matter . | . . . . . . . . . . . . . . . . . . . . . . . . . . . . . . Parts Self-Destructed 47 | . . . . . . . 7 4 1 3 . 2 11 . 16 . 3 . . . . . . . . . . . . Prevented 9 | . . . . . . . . 5 . 1 . . . . . . 3 . . . . . . . . . . . . Kills | -11 -10 -10 -9 -9 -8 -7 -7 -7 -7 -6 -6 -6 -6 -6 -5 -5 -5 -5 -5 -4 -4 -4 -4 -4 -4 -3 -3 -2 -1 ------- Run | Scr Mat Min Mat Min Mat Fac Low Low Zio Pro Fac Low Low Dat Pro Fac Upp Upp Zhi Pro Fac Ext Cet Arc Hub Res Qua Res Acc Combat Hostiles Destroyed 206 | . 13 3 17 5 31 12 . 2 . 1 5 . . . 1 21 4 . . . 1 1 1 . 16 18 19 35 . Melee 51 | . 1 . 2 . . 1 . . . . . . . . . 1 . . . . 1 . . . 12 6 13 14 . Guns 61 | . 12 3 15 . 6 1 . . . . . . . . 1 12 . . . . . . . . 2 4 1 4 . Cannons 45 | . . . . . 16 6 . 2 . 1 2 . . . . 4 . . . . . 1 . . 1 . 5 7 . AOE 36 | . . . . 5 9 2 . . . . 3 . . . . 4 3 . . . . . 1 . 1 7 . 1 . Classes Destroyed 20 | 1 5 1 1 . 3 3 . 1 . . . . . . . 1 1 . . . . . . . 1 . . 2 . Worker 29 | . 5 . 1 . 2 4 . . . . 2 . . . . 5 . . . . . . . . 7 2 1 . . Builder 13 | . . . . . 1 2 . . . . . . . . . 3 . . . . . 2 . . 4 . . 1 . Tunneler 6 | 2 . 1 . . . . . . . . . . . . . . . . . . . . . . 3 . . . . Hauler 20 | . 1 . 6 . 4 1 . . . . 2 . . . . 1 . . . . . . . . 2 1 1 1 . Recycler 19 | . . 1 2 . 3 1 . . . . 1 . . . . . . . . . . . . . 3 2 . 6 . Minesweeper 1 | . . . . . . . . 1 . . . . . . . . . . . . . . . . . . . . . Mechanic 2 | . . . . . . 1 . . . . . . . . . 1 . . . . . . . . . . . . . Operator 11 | . . . . . . 1 . . . . . . . . . . . . . . . . . 9 . . . . 1 Watcher 19 | . 1 . 2 . 4 5 . . . . . . . . . 2 . . . . . . . . 2 . 1 2 . Swarmer 32 | . 6 3 5 3 3 2 . . . . 4 . . . . . . . . . . . . . . 6 . . . Grunt 63 | . 7 . 4 2 15 2 . . . . 1 . . . . 2 3 . . . . 1 . . 5 2 9 10 . Brawler 1 | . . . . . . . . . . . . . . . . . . . . . . . . . . . . 1 . Duelist 1 | . . . . . . . . . . . . . . . . . . . . . . . . . . . . 1 . Protector 1 | . . . . . . . . . . . . . . . . . . . . . . . . . 1 . . . . Sentry 24 | . . . 8 . 8 2 . . . . . . . . . 2 . . . . . . . . 1 1 . 2 . Specialist 11 | . . . . . 2 . . . . . . . . . 1 3 . . . . . . . . . 2 3 . . Hunter 20 | . . . . . 3 3 . 2 . . . . . . . 3 . . . . 1 . 1 . 1 2 2 2 . Programmer 45 | . . . . . . 3 . . . 1 . . . . . 10 1 . . . . . . . 3 4 5 18 . Heavy 3 | . . . . . . . . . . . . . . . . 1 . . . . . . . . . 1 . 1 . Lightning 5 | . . . . . . . . . . . . . . . . . . . . . . . . . 5 . . . . Decomposer 5 | . . . . . . . . . . . . . . . . . . 3 . 2 . . . . . . . . . Packrat 4 | . . . . . . . . . . . . . . . . . 2 . . 2 . . . . . . . . . Samaritan 4 | . . . . . . . . . . . . . . . . . 2 1 . 1 . . . . . . . . . Best Kill Streak 16 | 2 6 3 3 3 6 4 . 1 . 1 6 . . . 1 11 3 . . . 1 1 1 2 16 6 3 9 1 Combat Bots Only 7 | . 6 3 3 3 4 2 . 1 . 1 5 . . . 1 5 3 . . . 1 1 1 . 5 5 3 7 . Max Kills in Single Turn 15 | 1 2 1 2 2 3 4 . 1 . 1 2 . . . 1 3 2 1 . 1 1 1 1 1 15 3 1 1 1 Gunslinging 1 | . 1 . . . . . . . . . . . . . . . . . . . . . . . . . . . . Exploded 3 | . . . . 2 2 2 . . . . 2 . . . . 2 2 . . . . . 1 . 1 3 . 1 . Melee 1 | . 1 . 1 . . 1 . . . . . . . . . 1 . . . . 1 . . . 1 1 1 1 . Uniques/NPCs Destroyed 1 | . . . . . . . . . . . . . . . . . . . . . . . . 1 . . . . . CL-ANK (-4/Archives) Combat | -11 -10 -10 -9 -9 -8 -7 -7 -7 -7 -6 -6 -6 -6 -6 -5 -5 -5 -5 -5 -4 -4 -4 -4 -4 -4 -3 -3 -2 -1 -------- Run | Scr Mat Min Mat Min Mat Fac Low Low Zio Pro Fac Low Low Dat Pro Fac Upp Upp Zhi Pro Fac Ext Cet Arc Hub Res Qua Res Acc Damage Taken 24066 | 14 358 31 902 115 1582 959 . 94 . 265 407 . . . . 3947 580 . . . 54 590 163 48 4553 2879 1878 3987 660 Core 3559 | 14 126 8 179 . 138 59 . . . 53 48 . . . . 657 99 . . . 18 31 19 . 607 552 439 425 87 Absorbed by Shields 734 | . . . 58 . . . . . . . . . . . . . . . . . . 216 70 16 . . . 374 . Reduced by Siege Mode 42 | . . . . . . . . . . . . . . . . . . . . . . . . . . 42 . . . Redirected to Core 186 | . . . . . . . . . . . . . . . . . . . . . . . . . . . 186 . . Redirected to Shielding 596 | . . . . . . . . . . . . . . . . 151 150 . . . . . . . 145 150 . . . Regen/Repaired (Parts) 867 | . . . . . 126 180 . . . . . . . . . 160 . . . . 401 . . . . . . . . Core Remaining (%) 60 | 94 . 40 . 55 74 . . . . 84 . . . . 94 . . . . 24 . . . . 41 . 23 58 83 Volleys Fired 837 | 5 43 7 77 7 119 89 . 13 1 3 34 5 7 . 12 59 5 10 . 7 5 91 5 17 28 42 63 74 9 Largest 3 | 2 2 2 2 2 2 2 . 2 1 1 2 1 1 . 3 3 1 1 . 1 1 2 1 3 2 3 3 3 1 Hottest 300 | 80 136 112 112 53 60 112 . 112 90 90 180 90 90 . 225 225 50 . . . 20 94 33 158 90 156 295 300 300 Shots Fired 1379 | 9 85 14 149 10 219 149 . 17 1 3 44 5 7 . 14 133 6 10 . 7 5 101 5 39 42 64 101 131 9 Gun 663 | 9 72 14 149 4 68 8 . . . . 6 . . . 3 108 . . . . . 10 3 35 27 47 38 62 . Cannon 564 | . 12 . . . 137 139 . 17 1 3 29 5 7 . 11 21 . . . . . 12 . 4 15 10 63 69 9 Launcher 46 | . . . . 6 14 2 . . . . 9 . . . . 4 3 . . . . . 1 . . 7 . . . Special 106 | . 1 . . . . . . . . . . . . . . . 3 10 . 7 5 79 1 . . . . . . Kinetic 255 | . . . 46 4 68 8 . . . . . . . . . . . . . . . 22 3 35 27 42 . . . Thermal 931 | 1 85 14 103 . 137 124 . 9 1 3 35 5 7 . 14 129 . . . . 2 . . 4 15 15 101 118 9 Explosive 22 | . . . . 2 11 . . . . . . . . . . 4 3 . . . . . . . . 2 . . . Electromagnetic 68 | 8 . . . 4 3 17 . 8 . . 9 . . . . . . . . . . . 1 . . 5 . 13 . Robot Hit Streak 37 | 3 14 5 11 1 33 10 . 6 . 2 15 1 . . 3 19 6 . . 1 3 22 8 9 5 23 37 19 3 Robot Miss Streak 7 | 1 5 1 7 1 5 2 . 1 . . 2 . . . 2 4 5 . . 1 . 2 1 2 2 2 1 1 . Penetration Max 1 | . . . . . . . . . . . . . . . . . . . . . . . 1 1 1 . . 1 . Secondary Targets 7 | . 1 . 3 . . . . . . . . . . . . 3 . . . . . . . . . . . . . Max Gunslinging Chain 1 | . 1 . 1 . . . . . . . . . . . . 1 . . . . . . . . . . . . . Shots Hit Robots 1001 | 7 53 10 98 3 146 78 . 7 . 2 17 1 . . 3 123 11 5 . 7 9 68 4 27 60 61 77 121 3 Core Hits 593 | 2 23 5 37 7 69 29 . 6 . 1 30 . . . 4 149 18 2 . 3 1 5 4 19 45 58 26 50 . Critical Kills 38 | . . . . . . . . . . . . . . . . . . . . . . . . 2 11 4 10 11 . Critical Parts Destroyed 61 | . . . 1 . 1 1 . . . . . . . . . . . . . . . . . . 15 8 21 13 1 Critical Strikes 117 | . 1 . 8 . 1 1 . 1 . . . . . . . 1 1 . . . . 1 . 2 27 12 31 27 3 Burn 8 | . 1 . 7 . . . . . . . . . . . . . . . . . . . . . . . . . . Destroy 15 | . . . . . . . . . . . . . . . . . . . . . . . . 2 3 1 5 1 3 Blast 1 | . . . . . . . . . . . . . . . . . . . . . . 1 . . . . . . . Corrupt 4 | . . . . . . . . 1 . . . . . . . . . . . . . . . . . . . 3 . Smash 86 | . . . 1 . 1 1 . . . . . . . . . . . . . . . . . . 23 11 26 23 . Sever 1 | . . . . . . . . . . . . . . . . . . . . . . . . . 1 . . . . Impale 2 | . . . . . . . . . . . . . . . . 1 1 . . . . . . . . . . . . Melee Attacks 235 | . 6 . 13 . 2 16 . . . 1 . . . . . 3 6 6 . 11 14 12 . . 54 14 36 41 . Kinetic 130 | . . . . . . . . . . . . . . . . . . . . . . . . . 39 14 36 41 . Impact 37 | . 6 . 13 . 2 16 . . . . . . . . . . . . . . . . . . . . . . . Slashing 34 | . . . . . . . . . . . . . . . . . . . . . 7 12 . . 15 . . . . Piercing 34 | . . . . . . . . . . 1 . . . . . 3 6 6 . 11 7 . . . . . . . . Sneak Attacks 39 | . . . 1 . 1 3 . . . . . . . . . . 6 5 . 6 . 2 . . 5 3 2 5 . Combat Hostiles 4 | . . . 1 . . . . . . . . . . . . . . . . . . . . . 2 . . 1 . Follow-up Attacks 4 | . . . . . . . . . . . . . . . . . . . . . . . . . 4 . . . . Damage Inflicted 41792 | 161 851 152 1626 339 4505 3435 . 180 . 74 831 31 . . 36 4169 671 277 . 330 392 1154 209 927 5728 3479 4421 7101 713 Guns 11320 | 90 643 152 1459 16 850 111 . . . . 132 . . . 36 2602 . . . . . 181 76 708 440 999 1020 1805 . Cannons 10187 | . 164 . . . 2410 1939 . 180 . 41 382 31 . . . 614 . . . . . 403 . 148 307 71 785 2072 640 Explosions 7277 | 71 . . . 323 1140 1015 . . . . 317 . . . . 885 337 . . . . . 133 71 1844 932 . 136 73 Melee 12869 | . 44 . 167 . 105 369 . . . 33 . . . . . 68 334 277 . 330 368 570 . . 3065 1447 2616 3076 . Ramming 115 | . . . . . . 1 . . . . . . . . . . . . . . . . . . 72 30 . 12 . Kinetic 13805 | . . . 474 16 850 111 . . . . . . . . . . . . . . . 584 76 708 3008 2286 2616 3076 . Thermal 17169 | 83 807 152 985 28 2410 2110 . 53 . 41 559 31 . . 36 3216 . . . . 24 . 107 219 401 231 1805 3231 640 Explosive 3261 | . . . . 171 1069 525 . . . . . . . . . 885 337 . . . . . . . . 274 . . . Electromagnetic 4280 | 78 . . . 124 71 319 . 127 . . 272 . . . . . . . . . . . 26 . 1750 658 . 782 73 Impact 685 | . 44 . 167 . 105 369 . . . . . . . . . . . . . . . . . . . . . . . Slashing 1435 | . . . . . . . . . . . . . . . . . . . . . 368 570 . . 497 . . . . Piercing 1042 | . . . . . . . . . . 33 . . . . . 68 334 277 . 330 . . . . . . . . . Highest Corruption 43 | . . . . . . 2 . . . 5 3 . . . . 21 29 29 29 43 . . 8 8 42 4 4 16 9 Average Corruption 12 | . . . . . . 1 . . . 5 2 . . . . 16 26 29 29 29 . . 8 4 8 2 1 6 9 Corruption Purged 26 | . . . . . . 2 . . . . 3 . . . . . . . . . . . . 13 . . 4 4 . Corruption Blocked . | . . . . . . . . . . . . . . . . . . . . . . . . . . . . . . Effects 273 | . . . . . . 8 . . . 1 4 . . . . 11 56 36 10 21 . . 5 15 47 5 4 43 7 Message Errors 69 | . . . . . . 1 . . . . . . . . . 1 16 12 3 2 . . 2 3 16 1 1 10 1 Matter Fused 61 | . . . . . . . . . . . . . . . . 2 13 11 . 4 . . 3 3 8 2 . 12 3 Heat Flow Errors 27 | . . . . . . 2 . . . . 1 . . . . 1 7 1 3 1 . . . 2 3 . . 6 . Energy Discharges 47 | . . . . . . 3 . . . . 2 . . . . 2 10 5 2 9 . . . 3 7 1 . 2 1 Parts Rejected 7 | . . . . . . . . . . . . . . . . 1 . . . . . . . 1 1 . . 3 1 Data Loss (minor) 28 | . . . . . . 1 . . . 1 . . . . . 1 6 3 1 4 . . . . 3 . 2 5 1 Data Loss (major) 16 | . . . . . . . . . . . . . . . . . 2 3 1 1 . . . 1 4 1 . 3 . Misfires 6 | . . . . . . . . . . . . . . . . 1 1 . . . . . . 2 2 . . . . Alerts 6 | . . . . . . . . . . . 1 . . . . . 1 1 . . . . . . 1 . 1 1 . Misdirections 1 | . . . . . . . . . . . . . . . . . . . . . . . . . 1 . . . . Weapon Failures 5 | . . . . . . 1 . . . . . . . . . 2 . . . . . . . . 1 . . 1 . Overload Shots 4 | . . . . . . 4 . . . . . . . . . . . . . . . . . . . . . . . Overflow Damage 6687 | . . . 107 30 143 446 . . . . . . . . . 73 148 112 . 127 43 198 . . 1139 938 1721 1284 178 Projectiles 362 | . . . . . 38 99 . . . . . . . . . . . . . . . 5 . . 7 . . 48 165 Explosions 421 | . . . . 30 . 177 . . . . . . . . . 31 2 . . . . . . . 168 . . . 13 Melee 5904 | . . . 107 . 105 170 . . . . . . . . . 42 146 112 . 127 43 193 . . 964 938 1721 1236 . Knockbacks 9 | . . . 1 . . 3 . . . . . . . . . . . . . . . 3 . . . 1 . 1 . Impact 5 | . . . 1 . . 2 . . . . . . . . . . . . . . . . . . . 1 . 1 . Kinetic 3 | . . . . . . . . . . . . . . . . . . . . . . 3 . . . . . . . Secondary 1 | . . . . . . 1 . . . . . . . . . . . . . . . . . . . . . . . Self-Inflicted Damage 1044 | 15 . . . 20 56 214 . . . . . . . . . 452 54 . . . . . . 65 94 15 . 59 . Shots 29 | 1 . . . 1 2 3 . . . . . . . . . 16 2 . . . . . . 1 1 1 . 1 . Rammed 3 | . . . . . . 1 . . . . . . . . . . . . . . . . . . 2 . . . . Targets Rammed 9 | . . . . . . 1 . . . . . . . . . . . . . . . . . . 2 5 . 1 . Kicked 6 | . . . . . . . . . . . . . . . . . . . . . . . . . . 5 . 1 . Crushed . | . . . . . . . . . . . . . . . . . . . . . . . . . . . . . . Highest Temperature 499 | 66 296 63 180 7 219 245 . . . 4 197 . . . 102 489 259 145 180 181 . 22 . 195 186 . . 466 499 Average Temperature 89 | 25 101 29 46 3 96 45 . . . 3 47 . . . 33 132 107 85 89 105 . 9 . 61 36 . . 128 143 Received Heat Transfer 2984 | . 90 . 248 48 540 111 . . . 48 81 . . . . 495 21 . . . . 126 9 . 174 399 264 321 9 Effects 13 | . . . . . . . . . . . . . . . . 5 . . . . . . . . . . . 6 2 Shutdowns 2 | . . . . . . . . . . . . . . . . . . . . . . . . . . . . 2 . Energy Bleed 5 | . . . . . . . . . . . . . . . . 2 . . . . . . . . . . . 2 1 Interference 4 | . . . . . . . . . . . . . . . . 2 . . . . . . . . . . . 2 . Matter Decay 1 | . . . . . . . . . . . . . . . . . . . . . . . . . . . . . 1 Damage (minor) 1 | . . . . . . . . . . . . . . . . 1 . . . . . . . . . . . . . Siege Activations 1 | . . . . . . . . . . . . . . . . . . . . . . . . . . 1 . . . Total Turns 12 | . . . . . . . . . . . . . . . . . . . . . . . . . . 12 . . . Longest Duration 12 | . . . . . . . . . . . . . . . . . . . . . . . . . . 12 . . . Robots Corrupted 6 | . . . . . . 2 . . . . . . . . . . . . . . . . . . . 1 . 3 . Combat Hostiles 6 | . . . . . . 2 . . . . . . . . . . . . . . . . . . . 1 . 3 . Parts Fried 32 | . . . 2 . . 9 . 2 . . . . . . . . . . . . . . 1 . 10 4 . 4 . Impact Corruptions 16 | . . . 4 . 3 8 . . . . . . . . . . . . . . . . . . 1 . . . . Robots Melted 2 | . . . 1 . . . . . . . . . . . . . . . . . . . . . . . . 1 . Combat Hostiles 1 | . . . . . . . . . . . . . . . . . . . . . . . . . . . . 1 . Parts Melted 26 | 1 1 . 8 . 4 1 . . . . . . . . . . . . . . . . . 1 . . 2 8 . Heat Transferred 19814 | 137 1998 370 2960 50 3145 2385 . 74 . 50 760 50 . . 30 2891 . . . . 18 . 100 50 200 185 1684 2677 . Parts Sabotaged 3 | . . . . . . . . . . . . . . . . . . . . . . . . . . . 3 . . Parts Stolen . | . . . . . . . . . . . . . . . . . . . . . . . . . . . . . . Parts Stripped . | . . . . . . . . . . . . . . . . . . . . . . . . . . . . . . Power Chain Reactions 8 | 1 . . . 2 . . . . . . 1 . . . . . . . . . . . 1 1 1 . . 1 . Missiles Intercepted . | . . . . . . . . . . . . . . . . . . . . . . . . . . . . . . Alert | -11 -10 -10 -9 -9 -8 -7 -7 -7 -7 -6 -6 -6 -6 -6 -5 -5 -5 -5 -5 -4 -4 -4 -4 -4 -4 -3 -3 -2 -1 ------- Run | Scr Mat Min Mat Min Mat Fac Low Low Zio Pro Fac Low Low Dat Pro Fac Upp Upp Zhi Pro Fac Ext Cet Arc Hub Res Qua Res Acc Peak Influence 1498 | 10 324 206 598 184 414 229 . . . . 208 . . . . 318 . . . . 56 519 720 462 1474 1038 779 1498 1357 Initial 882 | . 6 126 79 131 53 188 . . . . . . . . . . . . . . . 27 290 208 91 759 515 415 882 Average 357 | 1 119 161 381 133 226 123 . . . . 48 . . . . 103 . . . . 18 179 565 333 400 818 652 685 1174 Maximum Alert Level 4 | . 1 1 2 . 2 1 . . . . 1 . . . . 1 . . . . . 2 3 2 4 3 3 4 4 Low Security (%) 43 | 100 71 62 6 100 49 91 . . . . 84 . . . . 93 . . . . 100 69 . . 26 . . . . Level 1 20 | . 28 37 44 . 32 8 . . . . 15 . . . . 6 . . . . . 19 7 81 56 . . 5 . Level 2 21 | . . . 49 . 17 . . . . . . . . . . . . . . . . 11 63 18 . 10 80 59 . Level 3 9 | . . . . . . . . . . . . . . . . . . . . . . . 28 . . 89 19 20 21 Level 4 5 | . . . . . . . . . . . . . . . . . . . . . . . . . 16 . . 14 78 Level 5 . | . . . . . . . . . . . . . . . . . . . . . . . . . . . . . . High Security . | . . . . . . . . . . . . . . . . . . . . . . . . . . . . . . Max Security . | . . . . . . . . . . . . . . . . . . . . . . . . . . . . . . Squads Dispatched 66 | . 2 . 1 . 5 7 . . . . 5 . . . . 7 . . . . . 1 . . 7 7 8 12 4 Investigation 18 | . 2 . 1 . 4 2 . . . . 3 . . . . 1 . . . . . . . . . 1 1 . 3 Extermination 18 | . . . . . . 2 . . . . 1 . . . . 2 . . . . . . . . 3 1 2 7 . Reinforcement 22 | . . . . . 1 3 . . . . 1 . . . . 4 . . . . . 1 . . 4 3 3 2 . Assault 8 | . . . . . . . . . . . . . . . . . . . . . . . . . . 2 2 3 1 Garrison . | . . . . . . . . . . . . . . . . . . . . . . . . . . . . . . Intercept . | . . . . . . . . . . . . . . . . . . . . . . . . . . . . . . Searches Triggered . | . . . . . . . . . . . . . . . . . . . . . . . . . . . . . . Data Miner Redirects 10 | . . . . . . . . . . . . . . . . 1 . . . . . . . . . 4 1 3 1 Construction Impeded 3 | . . . . . . . . . . . . . . . . 1 . . . . . 1 . . 1 . . . . Haulers Reinforced 4 | . . . . . . 1 . . . . 1 . . . . 1 . . . . . . . . . 1 . . . Active Scanning Responses . | . . . . . . . . . . . . . . . . . . . . . . . . . . . . . . Cargo Convoy Interrupts 1 | . . . . . . . . . . . . . . . . 1 . . . . . . . . . . . . . Stealth | -11 -10 -10 -9 -9 -8 -7 -7 -7 -7 -6 -6 -6 -6 -6 -5 -5 -5 -5 -5 -4 -4 -4 -4 -4 -4 -3 -3 -2 -1 --------- Run | Scr Mat Min Mat Min Mat Fac Low Low Zio Pro Fac Low Low Dat Pro Fac Upp Upp Zhi Pro Fac Ext Cet Arc Hub Res Qua Res Acc Distress Signals 20 | . . . 1 . 2 1 . . . . . . . . . 1 . . . . . 4 2 . 3 1 . 4 1 Communications Jammed . | . . . . . . . . . . . . . . . . . . . . . . . . . . . . . . Distress Signals . | . . . . . . . . . . . . . . . . . . . . . . . . . . . . . . Times Spotted 486 | . 16 3 40 5 42 27 . 2 . 2 9 3 4 . 6 41 2 . . . 2 24 14 14 43 33 44 96 14 Peak Tracking Total 18 | . 6 3 5 3 4 3 . 1 . 1 8 3 2 . 5 11 1 . . . 3 5 5 1 12 8 10 18 5 Tactical Retreats 30 | . . . 2 . . . . . . . . . . . . 1 . . . . . 2 . . 6 1 4 12 2 Traps | -11 -10 -10 -9 -9 -8 -7 -7 -7 -7 -6 -6 -6 -6 -6 -5 -5 -5 -5 -5 -4 -4 -4 -4 -4 -4 -3 -3 -2 -1 ------- Run | Scr Mat Min Mat Min Mat Fac Low Low Zio Pro Fac Low Low Dat Pro Fac Upp Upp Zhi Pro Fac Ext Cet Arc Hub Res Qua Res Acc Traps Triggered 13 | . 1 . 1 . 2 . . . . . . . . . . 1 . . . . . 2 . . . 1 1 4 . Indirectly . | . . . . . . . . . . . . . . . . . . . . . . . . . . . . . . Trap Hack Attempts 42 | . . . . . 42 . . . . . . . . . . . . . . . . . . . . . . . . Triggered . | . . . . . . . . . . . . . . . . . . . . . . . . . . . . . . Disarmed 1 | . . . . . 1 . . . . . . . . . . . . . . . . . . . . . . . . Reprogrammed 3 | . . . . . 3 . . . . . . . . . . . . . . . . . . . . . . . . Reused 2 | . . . . . . . . . . . . . . . . . . . . . . . . . 2 . . . . Traps Extracted 5 | . . . . . 3 . . 2 . . . . . . . . . . . . . . . . . . . . . Installed 2 | . . . . . . . . . . . . . . . . . . . . . . . . . 2 . . . . Triggered 7 | . . . . . . . . . . . . . 1 . 1 . 2 . . . . . . . 2 . . 1 . Most Traps Carried 11 | . . . . . 3 3 3 10 10 10 10 10 10 10 10 10 10 11 11 11 11 11 11 11 8 4 4 . . Machines | -11 -10 -10 -9 -9 -8 -7 -7 -7 -7 -6 -6 -6 -6 -6 -5 -5 -5 -5 -5 -4 -4 -4 -4 -4 -4 -3 -3 -2 -1 ---------- Run | Scr Mat Min Mat Min Mat Fac Low Low Zio Pro Fac Low Low Dat Pro Fac Upp Upp Zhi Pro Fac Ext Cet Arc Hub Res Qua Res Acc Machines Disabled 66 | . . . 4 2 4 8 . . . . 1 . . . . 1 . . . . . 1 . 2 29 . 5 3 6 Max in Single Turn 23 | . . . 1 2 1 3 . . . . 1 . . . . . . . . . . . . 1 23 . 1 1 3 Garrison Access 4 | . . . . . 1 1 . . . . . . . . . . . . . . . . . . . 1 . . 1 Network Hub 2 | . . . . . . . . . . . . . . . . . . . . . . . . . 2 . . . . Machines Sabotaged . | . . . . . . . . . . . . . . . . . . . . . . . . . . . . . . Garrisons Compromised . | . . . . . . . . . . . . . . . . . . . . . . . . . . . . . . Overloaded Fab Kills . | . . . . . . . . . . . . . . . . . . . . . . . . . . . . . . Hacking | -11 -10 -10 -9 -9 -8 -7 -7 -7 -7 -6 -6 -6 -6 -6 -5 -5 -5 -5 -5 -4 -4 -4 -4 -4 -4 -3 -3 -2 -1 --------- Run | Scr Mat Min Mat Min Mat Fac Low Low Zio Pro Fac Low Low Dat Pro Fac Upp Upp Zhi Pro Fac Ext Cet Arc Hub Res Qua Res Acc Machines Accessed 70 | . 7 . 12 . 12 10 3 1 . . 4 . . 4 . 3 2 . 4 . 1 . 1 . . 2 1 . 3 Terminals 34 | . 6 . 11 . 9 6 . . . . . . . . . . . . . . . . 1 . . . 1 . . Fabricators 3 | . . . . . . . . . . . 1 . . . . 1 . . . . . . . . . . . . 1 Repair Stations 6 | . . . . . 1 1 . . . . 1 . . . . 2 . . . . 1 . . . . . . . . Recycling Units 8 | . 1 . 1 . 1 2 . . . . 2 . . . . . . . . . . . . . . 1 . . . Scanalyzers 1 | . . . . . . . . . . . . . . . . . . . . . . . . . . . . . 1 Garrison Access 4 | . . . . . 1 1 . . . . . . . . . . . . . . . . . . . 1 . . 1 Total Hacks 218 | . 15 . 49 . 36 27 11 1 . . 6 . . 28 . 7 6 . 16 . 4 . 1 . . 5 1 . 5 Successful 154 | . 9 . 28 . 20 13 11 1 . . 3 . . 28 . 6 6 . 16 . 4 . 1 . . 3 1 . 4 Failed 63 | . 5 . 21 . 16 14 . . . . 3 . . . . 1 . . . . . . . . . 2 . . 1 Catastrophic 7 | . . . 1 . 3 1 . . . . 1 . . . . . . . . . . . . . . 1 . . . Database Lockouts 1 | . 1 . . . . . . . . . . . . . . . . . . . . . . . . . . . . Manual 235 | . 12 . 28 4 23 14 . . . . 26 . . . 1 15 . . . . 2 6 1 . 43 5 23 3 29 Terminals 112 | . 14 . 48 . 31 17 . . . . . . . . . . . . . . . . 1 . . . 1 . . Fabricators 7 | . . . . . . . . . . . 3 . . . . 2 . . . . . . . . . . . . 2 Repair Stations 17 | . . . . . 3 4 . . . . 1 . . . . 5 . . . . 4 . . . . . . . . Recycling Units 13 | . 1 . 1 . 1 4 . . . . 2 . . . . . . . . . . . . . . 4 . . . Scanalyzers 1 | . . . . . . . . . . . . . . . . . . . . . . . . . . . . . 1 Garrison Access 6 | . . . . . 1 2 . . . . . . . . . . . . . . . . . . . 1 . . 2 Terminal Hacks 105 | . 5 . 20 . 12 4 11 1 . . . . . 28 . . 6 . 16 . . . 1 . . . 1 . . Record 31 | . . . . . . . 9 . . . . . . 11 . . 5 . 5 . . . . . . . 1 . . Part Schematic 19 | . . . 3 . 1 1 . . . . . . . 11 . . . . 3 . . . . . . . . . . Robot Schematic 3 | . . . . . . . . . . . . . . 3 . . . . . . . . . . . . . . . Robot Analysis 11 | . 2 . 4 . 1 . . . . . . . . . . . . . 4 . . . . . . . . . . Prototype ID Bank 14 | . 1 . 3 . 3 . . . . . . . . 3 . . . . 4 . . . . . . . . . . Open Door 5 | . . . . . . . 2 1 . . . . . . . . 1 . . . . . 1 . . . . . . Branch Access Points 2 | . . . 1 . 1 . . . . . . . . . . . . . . . . . . . . . . . . Machine Index 2 | . . . . . 1 1 . . . . . . . . . . . . . . . . . . . . . . . Terminal Index 3 | . 1 . 1 . . 1 . . . . . . . . . . . . . . . . . . . . . . . Scanalyzer Index 1 | . . . 1 . . . . . . . . . . . . . . . . . . . . . . . . . . Alert Level 2 | . . . 1 . 1 . . . . . . . . . . . . . . . . . . . . . . . . Unreport Threat 6 | . . . 3 . 2 1 . . . . . . . . . . . . . . . . . . . . . . . Locate Traps 6 | . 1 . 3 . 2 . . . . . . . . . . . . . . . . . . . . . . . . Fabricator Hacks 4 | . . . . . . . . . . . . . . . . 2 . . . . . . . . . . . . 2 Load Schematic 2 | . . . . . . . . . . . . . . . . 1 . . . . . . . . . . . . 1 Build 2 | . . . . . . . . . . . . . . . . 1 . . . . . . . . . . . . 1 Repair Station Hacks 14 | . . . . . 2 4 . . . . . . . . . 4 . . . . 4 . . . . . . . . Scan Component 7 | . . . . . 1 2 . . . . . . . . . 2 . . . . 2 . . . . . . . . Repair 7 | . . . . . 1 2 . . . . . . . . . 2 . . . . 2 . . . . . . . . Recycling Unit Hacks 1 | . . . . . . . . . . . . . . . . . . . . . . . . . . 1 . . . Report Inventory 1 | . . . . . . . . . . . . . . . . . . . . . . . . . . 1 . . . Scanalyzer 1 | . . . . . . . . . . . . . . . . . . . . . . . . . . . . . 1 Insert Component 1 | . . . . . . . . . . . . . . . . . . . . . . . . . . . . . 1 Garrison Access Hacks 3 | . . . . . 1 1 . . . . . . . . . . . . . . . . . . . 1 . . . Seal Access 3 | . . . . . 1 1 . . . . . . . . . . . . . . . . . . . 1 . . . Unauthorized Hacks 26 | . 4 . 8 . 5 4 . . . . 3 . . . . . . . . . . . . . . 1 . . 1 Terminals 17 | . 3 . 7 . 4 3 . . . . . . . . . . . . . . . . . . . . . . . Track 2 | . 1 . 1 . . . . . . . . . . . . . . . . . . . . . . . . . . Assimilate 7 | . . . 4 . 2 1 . . . . . . . . . . . . . . . . . . . . . . . Botnet 5 | . 1 . 1 . 1 2 . . . . . . . . . . . . . . . . . . . . . . . Operators 3 | . 1 . 1 . 1 . . . . . . . . . . . . . . . . . . . . . . . . Fabricators 1 | . . . . . . . . . . . 1 . . . . . . . . . . . . . . . . . . Liberate 1 | . . . . . . . . . . . 1 . . . . . . . . . . . . . . . . . . Repair Stations . | . . . . . . . . . . . . . . . . . . . . . . . . . . . . . . Recycling Units 7 | . 1 . 1 . 1 1 . . . . 2 . . . . . . . . . . . . . . 1 . . . Mask 1 | . . . . . . . . . . . . . . . . . . . . . . . . . . 1 . . . Tunnel 6 | . 1 . 1 . 1 1 . . . . 2 . . . . . . . . . . . . . . . . . . Scanalyzers . | . . . . . . . . . . . . . . . . . . . . . . . . . . . . . . Garrison Access 1 | . . . . . . . . . . . . . . . . . . . . . . . . . . . . . 1 Jam 1 | . . . . . . . . . . . . . . . . . . . . . . . . . . . . . 1 Data Cores Recovered 3 | . . . 2 . . . . . . . . . . . . . . . . . . . . . . . . . 1 Used 1 | . . . 1 . . . . . . . . . . . . . . . . . . . . . . . . . . Hacking Detections 43 | . 6 . 10 1 9 9 . . . . 2 . . . . 3 . . . . 1 . . . . 1 . . 1 Full Trace Events 8 | . 1 . . . 3 1 . . . . 1 . . . . 1 . . . . . . . . . . . . 1 Feedback Events . | . . . . . . . . . . . . . . . . . . . . . . . . . . . . . . Feedback Blocked . | . . . . . . . . . . . . . . . . . . . . . . . . . . . . . . Robot Schematics Acquired 9 | . . . . . . . . . 3 . . . . 3 . . . . . . . . . . 3 . . . . Robots Built . | . . . . . . . . . . . . . . . . . . . . . . . . . . . . . . Authchips . | . . . . . . . . . . . . . . . . . . . . . . . . . . . . . . Time . | . . . . . . . . . . . . . . . . . . . . . . . . . . . . . . Total Robot Build Rating . | . . . . . . . . . . . . . . . . . . . . . . . . . . . . . . Part Schematics Acquired 81 | . . . 3 . 1 1 . . 16 . 10 . . 11 . . . . 3 . . . . . 22 . 14 . . Parts Built 3 | . . . . . . . . . . . . . . . . 1 . . . . . . . . . . . . 2 Authchips . | . . . . . . . . . . . . . . . . . . . . . . . . . . . . . . Time 85 | . . . . . . . . . . . . . . . . 50 . . . . . . . . . . . . 35 Total Part Build Rating 17 | . . . . . . . . . . . . . . . . 5 . . . . . . . . . . . . 12 Parts Repaired 7 | . . . . . 1 2 . . . . . . . . . 2 . . . . 2 . . . . . . . . Time 290 | . . . . . 51 64 . . . . . . . . . 51 . . . . 124 . . . . . . . . Parts Recycled . | . . . . . . . . . . . . . . . . . . . . . . . . . . . . . . Recycled Matter . | . . . . . . . . . . . . . . . . . . . . . . . . . . . . . . Retrieved Matter . | . . . . . . . . . . . . . . . . . . . . . . . . . . . . . . Retrieved Components . | . . . . . . . . . . . . . . . . . . . . . . . . . . . . . . Parts Scanalyzed . | . . . . . . . . . . . . . . . . . . . . . . . . . . . . . . Part Schematics Acquired . | . . . . . . . . . . . . . . . . . . . . . . . . . . . . . . Parts Damaged . | . . . . . . . . . . . . . . . . . . . . . . . . . . . . . . Bothacking | -11 -10 -10 -9 -9 -8 -7 -7 -7 -7 -6 -6 -6 -6 -6 -5 -5 -5 -5 -5 -4 -4 -4 -4 -4 -4 -3 -3 -2 -1 ------------ Run | Scr Mat Min Mat Min Mat Fac Low Low Zio Pro Fac Low Low Dat Pro Fac Upp Upp Zhi Pro Fac Ext Cet Arc Hub Res Qua Res Acc Used RIF Installer . | . . . . . . . . . . . . . . . . . . . . . . . . . . . . . . Robots Hacked 2 | . . . . . . . . . . . . . . . . . . . . . . 1 1 . . . . . . Non-combat . | . . . . . . . . . . . . . . . . . . . . . . . . . . . . . . Combat 2 | . . . . . . . . . . . . . . . . . . . . . . 1 1 . . . . . . Robot Hacks Applied 2 | . . . . . . . . . . . . . . . . . . . . . . 1 1 . . . . . . parse_system 2 | . . . . . . . . . . . . . . . . . . . . . . 1 1 . . . . . . Relay Couplers Released 6 | . . . . . . 3 . . . . . . . . . 3 . . . . . . . . . . . . . Programmers 6 | . . . . . . 3 . . . . . . . . . 3 . . . . . . . . . . . . . Fabnet Peak Effective % . | . . . . . . . . . . . . . . . . . . . . . . . . . . . . . . Robots Rewired 25 | . . . . . . . . . . . . . . . . . . . . . . 25 . . . . . . . Allies Hacked 1 | . . . . . . . . . . . . . . . . 1 . . . . . . . . . . . . . Hacks Repelled . | . . . . . . . . . . . . . . . . . . . . . . . . . . . . . . Allies | -11 -10 -10 -9 -9 -8 -7 -7 -7 -7 -6 -6 -6 -6 -6 -5 -5 -5 -5 -5 -4 -4 -4 -4 -4 -4 -3 -3 -2 -1 -------- Run | Scr Mat Min Mat Min Mat Fac Low Low Zio Pro Fac Low Low Dat Pro Fac Upp Upp Zhi Pro Fac Ext Cet Arc Hub Res Qua Res Acc Total Allies 65 | . . 4 . . 2 1 . . 4 . 6 . . . 1 5 . . . . 1 35 5 . . . . . 1 Largest Group 17 | . . 4 4 . 1 1 . . 4 4 6 6 5 5 5 3 . . . . 1 17 17 14 11 . . . 1 Highest-Rated Group 1175 | . . 71 71 . 10 26 . . 157 157 294 294 224 224 292 210 . . . . 127 932 1175 879 658 . . . 96 Highest-Rated Ally 159 | . . 31 31 . 10 26 . . 41 41 70 70 70 70 96 96 . . . . 127 159 159 151 96 . . . 96 Zionite Dispatches 6 | . . . . . . . . . . . 2 . . . . 2 . . . . 1 . . . . . . . 1 Heavy 1 | . . . . . . . . . . . . . . . . 1 . . . . . . . . . . . . . Light 2 | . . . . . . . . . . . 1 . . . . 1 . . . . . . . . . . . . . Recon 1 | . . . . . . . . . . . . . . . . . . . . . . . . . . . . . 1 Fire 1 | . . . . . . . . . . . 1 . . . . . . . . . . . . . . . . . . Hero 1 | . . . . . . . . . . . . . . . . . . . . . 1 . . . . . . . . Total Orders 23 | . . . 3 . 9 4 . . . . . . . . . 2 . . . . . . . 1 4 . . . . STAY 10 | . . . 2 . 5 2 . . . . . . . . . . . . . . . . . 1 . . . . . FOLLOW 7 | . . . 1 . 4 2 . . . . . . . . . . . . . . . . . . . . . . . EXPLORE 3 | . . . . . . . . . . . . . . . . . . . . . . . . . 3 . . . . RETURN 3 | . . . . . . . . . . . . . . . . 2 . . . . . . . . 1 . . . . Ally Attacks 540 | . . . 86 . . . . . . 8 27 8 21 . 33 53 . . . . 3 138 81 23 57 . . . 2 Total Damage 15342 | . . . 930 . . . . . . 138 489 151 463 . 756 1673 . . . . 219 4504 2920 793 2250 . . . 56 Kills 111 | . . . 17 . . . . . . 1 4 2 5 . 8 12 . . . . 1 28 13 6 13 . . . 1 Allies Corrupted 1 | . . . . . . . . . . 1 . . . . . . . . . . . . . . . . . . . Allies Melted . | . . . . . . . . . . . . . . . . . . . . . . . . . . . . . . Intel | -11 -10 -10 -9 -9 -8 -7 -7 -7 -7 -6 -6 -6 -6 -6 -5 -5 -5 -5 -5 -4 -4 -4 -4 -4 -4 -3 -3 -2 -1 ------- Run | Scr Mat Min Mat Min Mat Fac Low Low Zio Pro Fac Low Low Dat Pro Fac Upp Upp Zhi Pro Fac Ext Cet Arc Hub Res Qua Res Acc Robot Analysis Total 11 | . 2 . 4 . 1 . . . . . . . . . . . . . 4 . . . . . . . . . . Derelict Logs Recovered 13 | . . 1 . 1 . . 3 1 . 2 . . 1 . . . 1 1 . 2 . . . . . . . . . Drone Launches 7 | . . . . . . . . . . . . . . . . 2 . . . . . . . . 4 1 . . . Drone Recoveries 5 | . . . . . . . . . . . . . . . . 2 . . . . . . . . 2 1 . . . Zionite Intel Received 30 | . . . . . . . . . . . 4 . . . . 2 . . . . . 1 . . 12 . 6 . 5 Branch Access 4 | . . . . . . . . . . . 1 . . . . 1 . . . . . . . . . . 1 . 1 Emergency Access 2 | . . . . . . . . . . . . . . . . . . . . . . . . . 1 . . . 1 Guard Positions 2 | . . . . . . . . . . . . . . . . . . . . . . . . . 1 . . . 1 Component Stockpiles 1 | . . . . . . . . . . . . . . . . . . . . . . . . . 1 . . . . Prototype Stockpiles 3 | . . . . . . . . . . . 1 . . . . 1 . . . . . . . . . . 1 . . Component Schematics 1 | . . . . . . . . . . . . . . . . . . . . . . . . . . . 1 . . Prototype Schematics 3 | . . . . . . . . . . . 1 . . . . . . . . . . . . . 2 . . . . Unaware Schematics 1 | . . . . . . . . . . . . . . . . . . . . . . . . . 1 . . . . Unaware Analyses 5 | . . . . . . . . . . . . . . . . . . . . . . . . . 1 . 2 . 2 Trap Installations 3 | . . . . . . . . . . . . . . . . . . . . . . 1 . . 1 . 1 . . Active Terminals 2 | . . . . . . . . . . . 1 . . . . . . . . . . . . . 1 . . . . Active Garrisons 1 | . . . . . . . . . . . . . . . . . . . . . . . . . 1 . . . . Depthwide Sectors/0 1 | . . . . . . . . . . . . . . . . . . . . . . . . . 1 . . . . Depthwide Sectors/-1 1 | . . . . . . . . . . . . . . . . . . . . . . . . . 1 . . . . Exploration | -11 -10 -10 -9 -9 -8 -7 -7 -7 -7 -6 -6 -6 -6 -6 -5 -5 -5 -5 -5 -4 -4 -4 -4 -4 -4 -3 -3 -2 -1 ------------- Run | Scr Mat Min Mat Min Mat Fac Low Low Zio Pro Fac Low Low Dat Pro Fac Upp Upp Zhi Pro Fac Ext Cet Arc Hub Res Qua Res Acc Turns Passed 31557 | 74 677 347 1382 571 2271 2366 1607 1055 2191 1648 1003 651 745 101 827 1449 1261 767 222 480 499 1190 421 652 1779 943 1383 2409 586 Spaces Moved 19536 | 52 536 404 969 511 1196 1026 912 603 1317 896 590 442 586 88 390 790 509 419 159 295 237 629 235 345 743 520 830 2176 1131 Core 4 | 3 . . . . . . . . . . . . . . . 1 . . . . . . . . . . . . . Treads 1466 | . . . . . . . . . . . . . . . . . . . . . . . 209 345 743 169 . . . Legs 3103 | . . . . . . . . . . . . . . . . 4 . . . . 215 629 26 . . 348 830 1051 . Wheels 12707 | 49 536 404 969 511 1196 1026 912 603 1317 896 590 442 586 88 390 785 509 419 159 295 22 . . . . 3 . . . Hover 181 | . . . . . . . . . . . . . . . . . . . . . . . . . . . . 181 . Flight 2075 | . . . . . . . . . . . . . . . . . . . . . . . . . . . . 944 1131 Fastest Speed 34 | 50 80 80 90 105 105 150 150 150 165 165 115 115 115 115 115 117 150 131 131 120 116 116 120 160 160 102 102 39 34 Average Speed 125 | 88 83 80 103 105 137 168 159 163 165 165 137 115 115 115 117 125 216 147 131 121 116 127 155 160 160 132 107 76 37 Slowest Speed 1700 | 100 90 80 110 105 165 225 165 165 180 180 180 115 115 115 132 1700 260 150 131 131 198 196 160 160 160 310 113 138 122 Overloaded Moves . | . . . . . . . . . . . . . . . . . . . . . . . . . . . . . . Propulsion Burnouts . | . . . . . . . . . . . . . . . . . . . . . . . . . . . . . . Robots Hopped 25 | . . . . . . . . . . . . . . . . . . . . . . . . . . . . 7 18 Cave-ins Triggered 1 | . . . . . . . . . . . . . . . . . . . . . . . . . . . . . 1 Exploration Rate (%) 60 | 4 74 71 87 96 91 26 93 79 90 89 20 69 69 69 52 16 60 57 61 53 6 62 70 96 71 12 82 50 26 Regions Visited 29 Branch Regions 19 Pre-discovered Areas 28 | . 1 1 1 . 1 1 . . 2 . 2 . 1 1 . . . . 3 1 . . . . 13 . . . . Known Exits Taken 25 | . . . 1 . 1 1 1 1 1 1 1 1 1 1 1 1 1 1 1 1 1 1 1 1 1 1 1 1 . Unknown Exits Taken 4 | 1 1 1 . 1 . . . . . . . . . . . . . . . . . . . . . . . . . Scrap Searched 22 | . . 1 . 1 . . 2 1 3 5 . . 1 . 1 . 4 2 . 1 . . . . . . . . . Spaces Dug 196 | . 3 . 8 . 17 13 . 2 . 2 9 2 5 . 6 2 . 1 . 2 5 . . . 12 5 29 35 38 Terrain Destroyed 1068 | 3 3 . 8 17 109 65 . 4 . 2 18 4 7 . 11 102 65 1 . 2 5 2 12 9 317 50 48 134 70 Melee 47 | . 2 . 8 . 1 6 . . . . . . . . . . . 1 . 2 5 . . . 10 2 7 3 . Projectile 348 | . 1 . . . 39 17 . 4 . 2 15 4 7 . 11 3 . . . . . 2 . 9 8 7 41 108 70 AOE 673 | 3 . . . 17 69 42 . . . . 3 . . . . 99 65 . . . . . 12 . 299 41 . 23 . Terrain Rammed . | . . . . . . . . . . . . . . . . . . . . . . . . . . . . . . Walls Destroyed . | . . . . . . . . . . . . . . . . . . . . . . . . . . . . . . Machines Disabled . | . . . . . . . . . . . . . . . . . . . . . . . . . . . . . . Actions | -11 -10 -10 -9 -9 -8 -7 -7 -7 -7 -6 -6 -6 -6 -6 -5 -5 -5 -5 -5 -4 -4 -4 -4 -4 -4 -3 -3 -2 -1 --------- Run | Scr Mat Min Mat Min Mat Fac Low Low Zio Pro Fac Low Low Dat Pro Fac Upp Upp Zhi Pro Fac Ext Cet Arc Hub Res Qua Res Acc Total 24728 | 67 663 413 1173 532 1595 1476 1067 645 1338 1057 735 579 649 87 743 1116 648 544 173 387 432 907 286 410 1188 672 1159 2726 1261 Wait 2992 | . 42 1 39 . 116 303 146 8 . 141 59 133 53 . 313 174 108 99 . 63 151 112 12 30 290 24 173 277 125 Move 19457 | 51 535 403 968 510 1195 1025 911 602 1316 895 589 441 585 87 389 789 508 418 158 294 236 628 234 344 742 519 829 2161 1095 Hop 23 | . . . . . . . . . . . . . . . . . . . . . . . . . . . . 7 16 Pick Up 169 | 3 5 1 17 2 16 9 4 2 5 2 7 . . . 3 19 6 4 1 1 6 5 4 5 7 11 6 15 3 Fast Attach 195 | 7 4 . 11 1 14 2 . . 4 . 11 . 2 . 4 13 7 1 7 2 4 4 6 4 11 12 18 39 7 Attach 119 | . . . 5 1 5 5 . . 1 1 6 . 1 . . 13 5 . . 1 6 5 2 3 15 17 2 23 2 Detach 41 | . 2 . 1 . 3 . . . 1 . 3 . . . . 2 2 . . . . 2 1 . 10 6 2 6 . Swap 324 | 1 16 1 23 8 55 25 2 18 2 10 12 . . . 14 31 . 2 . 6 3 19 9 1 27 8 7 23 1 Drop 269 | . 10 . 19 3 28 1 4 2 8 4 14 . 1 . 8 13 1 4 7 2 7 19 13 6 8 14 23 48 2 Fire 837 | 5 43 7 77 7 119 89 . 13 1 3 34 5 7 . 12 59 5 10 . 7 5 91 5 17 28 42 63 74 9 Melee 227 | . 6 . 13 . 2 16 . . . 1 . . . . . 3 6 6 . 11 14 12 . . 46 14 36 41 . Ram 1 | . . . . . . 1 . . . . . . . . . . . . . . . . . . . . . . . Kick 6 | . . . . . . . . . . . . . . . . . . . . . . . . . . 5 . 1 . Crush 2 | . . . . . . . . . . . . . . . . . . . . . . . . . 2 . . . . Escape Stasis 22 | . . . . . . . . . . . . . . . . . . . . . . 10 . . . . . 11 1 Rewire . | . . . . . . . . . . . . . . . . . . . . . . . . . . . . . . Trap 44 | . . . . . 42 . . . . . . . . . . . . . . . . . . . 2 . . . . Miscellaneous . | . . . . . . . . . . . . . . . . . . . . . . . . . . . . . . Route ------- -11/Scrapyard -10/Materials (discovered 3 exits: *Mat x2 / [*Min]) -10/Mines (discovered 2 exits: *Mat x2) -9/Materials (discovered 5 exits: *Mat x3 / *Min x2) -9/Mines (discovered 4 exits: *Mat x2 / [*Exi] / *Zio) -8/Materials (discovered 3 exits: *Fac x3) -7/Factory (discovered 3 exits: *Fac / *Sto / *Low) -7/Lower Caves -7/Lower Caves (discovered 2 exits: *Fac / *Zio) -7/Zion -6/Proximity Caves -6/Factory (discovered 3 exits: Fac / *Low x2) -6/Lower Caves -6/Lower Caves (discovered 2 exits: *Fac / *Dat) -6/Data Miner -5/Proximity Caves -5/Factory (discovered 2 exits: *Upp x2) -5/Upper Caves -5/Upper Caves (discovered 2 exits: *Fac / *Zhi) -5/Zhirov -4/Proximity Caves -4/Factory (discovered 4 exits: Res x2 / *Ext / Arm) -4/Extension (discovered 2 exits: *Res / *Cet) -4/Cetus (discovered 2 exits: *Res / *Arc) -4/Archives (discovered 3 exits: *Res / *Hub x2) -4/Hub_04(d) (discovered 2 exits: *Res x2) -3/Research -3/Quarantine -2/Research (discovered 2 exits: *Acc x2) -1/Access (discovered 2 exits: *Sur / Com) To Epsilon Eridani History --------- Turn | Location | Event 10 | -11/Scrapyard | Discovered new exit (range 15) 75 | -11/Scrapyard | Entered Materials 228 | -10/Materials | Discovered new exit (range 9) 259 | -10/Materials | Discovered new exit (range 9) 309 | -10/Materials | Build established: Mutant 336 | -10/Materials | Discovered new exit (range 3) 538 | -10/Materials | Central database locked down 639 | -10/Materials | Core integrity fell below 50% 752 | -10/Materials | Entered Mines 887 | -10/Mines | Discovered new exit (range 9) 954 | -10/Mines | Escorted by a lone wolf Derelict 1004 | -10/Mines | Build established: Scavenger-Mutant 1071 | -10/Mines | Discovered new exit (range 12) 1082 | -10/Mines | Assisted by bots powering up and referring to "LRC-V3" 1099 | -10/Mines | Entered Materials 1099 | -9/Materials | Accompanied by 4 allies 1099 | -9/Materials | Evolved 2 slots: Utility x2 1123 | -9/Materials | Identified exit to Mines 1384 | -9/Materials | Discovered new exit (range 16) 1706 | -9/Materials | Discovered new exit (range 9) 1716 | -9/Materials | Build established: Mutant 2206 | -9/Materials | Discovered new exit (range 14) 2481 | -9/Materials | Entered Mines 2482 | -9/Mines | A Derelict revealed a hidden shortcut to a safe place 2602 | -9/Mines | Found a damaged Exp. Sensor Array with a note attached 2605 | -9/Mines | Found Prototype Device 2605 | -9/Mines | Identified Exp. Sensor Array 2679 | -9/Mines | Deemed a non-threat by the Exiles lab entrance 2680 | -9/Mines | Discovered new exit (range 5) 2854 | -9/Mines | Discovered new exit (range 5) 2950 | -9/Mines | Found a hidden stash of uninstalled traps 3041 | -9/Mines | Discovered new exit (range 6) 3052 | -9/Mines | Entered Materials 3052 | -8/Materials | Evolved 2 slots: Utility x2 3053 | -8/Materials | Identified exit to Factory 3442 | -8/Materials | Repaired Imp. Assault Rifle 4190 | -8/Materials | Discovered exit to Factory (range 4) 4979 | -8/Materials | Discovered exit to Factory (range 16) 5323 | -8/Materials | Entered Factory 5323 | -7/Factory | Evolved 2 slots: Power x1, Utility x1 5832 | -7/Factory | Discovered new exit (range 5) 5838 | -7/Factory | Identified exit to Storage 7152 | -7/Factory | Repaired Arm. Wheel 7186 | -7/Factory | Repaired Arm. Wheel? 7426 | -7/Factory | Discovered new exit (range 10) 7443 | -7/Factory | Identified exit to Factory 7567 | -7/Factory | Discovered new exit (range 15) 7594 | -7/Factory | Identified exit to Lower Caves 7689 | -7/Factory | Entered Lower Caves 7830 | -7/Lower Caves | Encountered a Warlord checkpoint 7915 | -7/Lower Caves | Learned Research stockpile data 7915 | -7/Lower Caves | Learned Extension stockpile data 7915 | -7/Lower Caves | Learned Factory security intel 7915 | -7/Lower Caves | Learned Extension security intel 7915 | -7/Lower Caves | Learned Armory terminal intel 8320 | -7/Lower Caves | Learned Factory trap positions 8699 | -7/Lower Caves | Learned 12 Factory zone layouts 9024 | -7/Lower Caves | Learned 8 Factory zone layouts 9189 | -7/Lower Caves | Discovered new exit (range 11) 9202 | -7/Lower Caves | Identified exit to Lower Caves 9296 | -7/Lower Caves | Entered another Lower Caves area 9435 | -7/Lower Caves | Discovered exit to Factory (range 11) 9876 | -7/Lower Caves | Identified exit to Zion 10034 | -7/Lower Caves | Build established: Trapper-Mutant 10351 | -7/Lower Caves | Entered Zion 10413 | -7/Zion | Discovered new exit (range 10) 10596 | -7/Zion | Learned location of Armory (-4) 10898 | -7/Zion | Learned location of Warlord (-4) 11324 | -7/Zion | Given A8's code to call for help 11370 | -7/Zion | Given the Hacking Drone Bay 11715 | -7/Zion | Found CR-A16's Pointy Stick 11875 | -7/Zion | Found Prototype Device 11875 | -7/Zion | Identified Hacking Drone Bay 12018 | -7/Zion | Found Prototype Device 12018 | -7/Zion | Identified Phasing AFG 12118 | -7/Zion | Imprinted 12120 | -7/Zion | Declared Zion's savior 12536 | -7/Zion | Identified exit to Proximity Caves 12542 | -7/Zion | Entered Proximity Caves 12542 | -6/Proximity Caves | Accompanied by 4 allies 12852 | -6/Proximity Caves | Spotted B-75 Beast 12863 | -6/Proximity Caves | Allies destroyed B-75 Beast 13265 | -6/Proximity Caves | Learned Factory security intel 13594 | -6/Proximity Caves | Learned Factory emergency access door positions 13981 | -6/Proximity Caves | Discovered exit to Factory (range 10) 14190 | -6/Proximity Caves | Entered Factory 14190 | -6/Factory | Accompanied by 3 allies 14190 | -6/Factory | Evolved 2 slots: Propulsion x2 14191 | -6/Factory | Identified exit to Factory 14192 | -6/Factory | Loaded intel: 121 trap records 14375 | -6/Factory | Retrieved Zion intel report: Branch Access 14375 | -6/Factory | Identified exit to Lower Caves 14673 | -6/Factory | Retrieved Zion intel report: Active Terminals 14697 | -6/Factory | Retrieved Zion intel report: Prototype Schematics 14845 | -6/Factory | Retrieved Zion intel report: Prototype Stockpiles 14846 | -6/Factory | Zion Fire squad teleported in 14889 | -6/Factory | Zion Light squad teleported in 15193 | -6/Factory | Entered Lower Caves 15193 | -6/Lower Caves | Accompanied by 6 allies 15339 | -6/Lower Caves | Encountered a Warlord checkpoint 15815 | -6/Lower Caves | Discovered new exit (range 9) 15838 | -6/Lower Caves | Identified exit to Lower Caves 15844 | -6/Lower Caves | Entered another Lower Caves area 15844 | -6/Lower Caves | Accompanied by 5 allies 15851 | -6/Lower Caves | Discovered exit to Factory (range 18) 15867 | -6/Lower Caves | Found Alien Artifact 15867 | -6/Lower Caves | Identified Core Expander 15867 | -6/Lower Caves | Installed Core Expander, added new Weapon slot 16449 | -6/Lower Caves | Encountered a Warlord checkpoint 16493 | -6/Lower Caves | Discovered new exit (range 15) 16511 | -6/Lower Caves | Identified exit to Data Miner 16589 | -6/Lower Caves | Entered Data Miner 16589 | -6/Data Miner | Accompanied by 5 allies 16589 | -6/Data Miner | Discovered new exit (range 6) 16611 | -6/Data Miner | Met Data Miner 16638 | -6/Data Miner | Learned location of Section 7 (-2) 16638 | -6/Data Miner | Acquired the access code to Warlord's prototype stash 16652 | -6/Data Miner | Received God Mode back door access code from Data Miner 16688 | -6/Data Miner | Identified exit to Proximity Caves 16690 | -6/Data Miner | Entered Proximity Caves 16690 | -5/Proximity Caves | Accompanied by 5 allies 16744 | -5/Proximity Caves | Acquired the password to a Derelict Tinkerer's latest research 16752 | -5/Proximity Caves | Found Prototype Special Weapon 16835 | -5/Proximity Caves | Escorted by Enhanced Grunt 16876 | -5/Proximity Caves | Caught by Unaware searching for contraband prototypes 17190 | -5/Proximity Caves | Discovered exit to Factory (range 10) 17375 | -5/Proximity Caves | Received a Behemoth hack from an annoying Tinkerer 17517 | -5/Proximity Caves | Entered Factory 17517 | -5/Factory | Accompanied by 1 ally 17517 | -5/Factory | Evolved 2 slots: Utility x2 17695 | -5/Factory | Fabricated Exp. Weapon Shielding (x1) 17842 | -5/Factory | Retrieved Zion intel report: Branch Access 17842 | -5/Factory | Identified exit to Upper Caves 17843 | -5/Factory | Zion Light squad teleported in 17881 | -5/Factory | Found Prototype Launcher 17881 | -5/Factory | Identified Rocket Array 17889 | -5/Factory | Found Rocket Array 18105 | -5/Factory | Repaired Arm. Wheel? 18195 | -5/Factory | Found Prototype Launcher 18195 | -5/Factory | Identified Scatter Rocket Array 18317 | -5/Factory | Repaired Reflective Plating 18437 | -5/Factory | Found Prototype Protection 18438 | -5/Factory | Identified Zio. Weapon Casing 18620 | -5/Factory | Retrieved Zion intel report: Prototype Stockpiles 18621 | -5/Factory | Zion Heavy squad teleported in 18672 | -5/Factory | Cargo convoy interrupted 18690 | -5/Factory | Incoming assault squad redirected 18706 | -5/Factory | System corruption reached 10% 18776 | -5/Factory | Lost 16 parts (4p4n5u3w) 18805 | -5/Factory | Terminal network hard line cut 18822 | -5/Factory | Found Zio. Weapon Casing 18825 | -5/Factory | Found Prototype Protection 18881 | -5/Factory | Core integrity fell below 50% 18884 | -5/Factory | Lost 4 parts (1n3u) 18919 | -5/Factory | Lost 6 parts (3n1u2w) 18966 | -5/Factory | Entered Upper Caves 18981 | -5/Upper Caves | Identified Molecular Deconstructor 19048 | -5/Upper Caves | Lost 4 parts (4u) 19705 | -5/Upper Caves | Learned Factory emergency access door positions 19908 | -5/Upper Caves | Learned 8 Factory zone layouts 19908 | -5/Upper Caves | Learned Research stockpile data 19908 | -5/Upper Caves | Learned Extension stockpile data 19908 | -5/Upper Caves | Learned Armory security intel 20105 | -5/Upper Caves | Discovered new exit (range 7) 20128 | -5/Upper Caves | Identified exit to Upper Caves 20227 | -5/Upper Caves | Entered another Upper Caves area 20248 | -5/Upper Caves | Discovered new exit (range 7) 20660 | -5/Upper Caves | Encountered a Warlord checkpoint 20966 | -5/Upper Caves | Discovered new exit (range 11) 20973 | -5/Upper Caves | Build established: Trapper-Assassin 20982 | -5/Upper Caves | Learned 8 Factory zone layouts 20993 | -5/Upper Caves | Identified exit to Zhirov 20994 | -5/Upper Caves | Entered Zhirov 20994 | -5/Zhirov | Discovered new exit (range 3) 21019 | -5/Zhirov | Met Zhirov 21048 | -5/Zhirov | Found Alien Artifact 21048 | -5/Zhirov | Identified Integrated Reactor 21048 | -5/Zhirov | Installed Integrated Reactor, increased core energy generation (+10) 21114 | -5/Zhirov | Found Alien Artifact 21153 | -5/Zhirov | Learned location of Quarantine (-3) 21175 | -5/Zhirov | Zhirov requested help retrieving the SGEMP Prototype 21215 | -5/Zhirov | Identified exit to Proximity Caves 21216 | -5/Zhirov | Entered Proximity Caves 21244 | -4/Proximity Caves | Learned location of 1 exit from Upper Caves 21647 | -4/Proximity Caves | Discovered new exit (range 5) 21654 | -4/Proximity Caves | Identified exit to Factory 21671 | -4/Proximity Caves | Identified Zio. Heavy Carapace 21676 | -4/Proximity Caves | Found Alien Artifact 21688 | -4/Proximity Caves | System corruption reached 30% 21696 | -4/Proximity Caves | Entered Factory 21696 | -4/Factory | Evolved 2 slots: Propulsion x2 21697 | -4/Factory | Identified exit to Armory 21698 | -4/Factory | Identified exit to Research 21892 | -4/Factory | Repaired Scatter Rocket Array 21942 | -4/Factory | Repaired Hrd. Heavy Armor Plating 22007 | -4/Factory | Discovered new exit (range 7) 22011 | -4/Factory | Identified exit to Extension 22050 | -4/Factory | Found Prototype Slashing Weapon 22050 | -4/Factory | Identified Vibroblade 22080 | -4/Factory | Zion hero teleported in (CL-ANK) 22195 | -4/Factory | Entered Extension 22195 | -4/Extension | Accompanied by 1 ally (CL-ANK) 22262 | -4/Extension | Rescued a captive Derelict 22513 | -4/Extension | Rescued a captive Derelict 22529 | -4/Extension | Rescued a captive Derelict 22588 | -4/Extension | Rescued a captive Derelict 22909 | -4/Extension | Rescued a captive Derelict 22946 | -4/Extension | Rescued A7 23210 | -4/Extension | Rescued a captive Derelict 23222 | -4/Extension | Rescued a captive Derelict 23297 | -4/Extension | Rescued a captive Derelict 23297 | -4/Extension | Rescued a captive Derelict 23351 | -4/Extension | Retrieved Zion intel report: Trap Installations 23362 | -4/Extension | Discovered exit to Research (range 10) 23363 | -4/Extension | Discovered new exit (range 6) 23372 | -4/Extension | Build established: Commander-Mutant 23379 | -4/Extension | Identified exit to Cetus 23385 | -4/Extension | Entered Cetus 23385 | -4/Cetus | Accompanied by 17 allies (incl. CL-ANK, A7) 23390 | -4/Cetus | Acquired a Cetus Manufacturing Module code from A7 23395 | -4/Cetus | Spotted Cetus Guard 23396 | -4/Cetus | Spotted Cetus Guard 23399 | -4/Cetus | Spotted Cetus Guard 23400 | -4/Cetus | Spotted Cetus Guard 23407 | -4/Cetus | Allies destroyed Cetus Guard 23413 | -4/Cetus | Allies destroyed Cetus Guard 23416 | -4/Cetus | Allies destroyed Cetus Guard 23416 | -4/Cetus | Allies destroyed Cetus Guard 23505 | -4/Cetus | Started Cetus Manufacturing Module 23530 | -4/Cetus | Manufactured an Enhanced Grunt 23537 | -4/Cetus | Escorted A7 to Cetus Mainframe 23555 | -4/Cetus | Manufactured an Enhanced Grunt 23573 | -4/Cetus | Discovered new exit (range 15) 23580 | -4/Cetus | Manufactured an Enhanced Grunt 23605 | -4/Cetus | Manufactured an Enhanced Grunt 23630 | -4/Cetus | Manufactured an Enhanced Grunt 23643 | -4/Cetus | Spotted Cetus Guard 23648 | -4/Cetus | Spotted Cetus Guard 23650 | -4/Cetus | Spotted Cetus Guard 23656 | -4/Cetus | Spotted Cetus Guard 23657 | -4/Cetus | Allies destroyed Cetus Guard 23658 | -4/Cetus | Allies destroyed Cetus Guard 23663 | -4/Cetus | Allies destroyed Cetus Guard 23664 | -4/Cetus | Allies destroyed Cetus Guard 23668 | -4/Cetus | Discovered exit to Research (range 15) 23681 | -4/Cetus | Scared off Revision 17 23798 | -4/Cetus | Identified exit to Archives 23806 | -4/Cetus | Entered Archives 23806 | -4/Archives | Accompanied by 15 allies (incl. CL-ANK, A7) 23809 | -4/Archives | Allies destroyed CL-ANK 23811 | -4/Archives | Received a hacking code to weaken MAIN.C 23823 | -4/Archives | Found CL-ANK's Mallet 23828 | -4/Archives | Found Exp. Melee Analysis Suite 23884 | -4/Archives | Discovered new exit (range 15) 23960 | -4/Archives | Discovered new exit (range 14) 24176 | -4/Archives | Discovered exit to Research (range 15) 24261 | -4/Archives | Build established: Scavenger-Mutant 24455 | -4/Archives | Identified exit to Hub_04(d) 24458 | -4/Archives | Entered Hub_04(d) 24458 | -4/Hub_04(d) | Accompanied by 11 allies 24678 | -4/Hub_04(d) | Retrieved Zion intel report: Active Terminals 24687 | -4/Hub_04(d) | Retrieved Zion intel report: Unaware Schematics 24697 | -4/Hub_04(d) | Retrieved Zion intel report: Component Stockpiles 24713 | -4/Hub_04(d) | Discovered exit to Research (range 17) 24759 | -4/Hub_04(d) | Retrieved Zion intel report: Trap Installations 24791 | -4/Hub_04(d) | Discovered exit to Research (range 7) 24825 | -4/Hub_04(d) | Retrieved Zion intel report: Emergency Access 24832 | -4/Hub_04(d) | Retrieved Zion intel report: Active Garrisons 25144 | -4/Hub_04(d) | Retrieved Zion intel report: Depthwide Sectors/0 25580 | -4/Hub_04(d) | Retrieved Zion intel report: Guard Positions 25622 | -4/Hub_04(d) | Retrieved Zion intel report: Prototype Schematics 25688 | -4/Hub_04(d) | Retrieved Zion intel report: Unaware Analyses 25712 | -4/Hub_04(d) | Retrieved Zion intel report: Prototype Schematics 25731 | -4/Hub_04(d) | Retrieved Zion intel report: Depthwide Sectors/-1 25753 | -4/Hub_04(d) | Terminal network hard line cut 25938 | -4/Hub_04(d) | Network Hub disabled 25938 | -4/Hub_04(d) | Network Hub disabled 25944 | -4/Hub_04(d) | Spotted Lightning 25944 | -4/Hub_04(d) | Spotted Lightning 25947 | -4/Hub_04(d) | Spotted Lightning 25951 | -4/Hub_04(d) | System corruption reached 10% 25957 | -4/Hub_04(d) | Spotted Lightning 25961 | -4/Hub_04(d) | Spotted Lightning 25974 | -4/Hub_04(d) | Spotted Lightning 26002 | -4/Hub_04(d) | Destroyed Lightning 26008 | -4/Hub_04(d) | Destroyed Lightning 26045 | -4/Hub_04(d) | Lost 5 parts (2p3u) 26051 | -4/Hub_04(d) | Found Prototype Device 26051 | -4/Hub_04(d) | Identified Exp. Phase Shifter 26069 | -4/Hub_04(d) | Found Prototype Processor 26069 | -4/Hub_04(d) | Identified Exp. Targeting Computer 26072 | -4/Hub_04(d) | Found Prototype Energy Cannon 26099 | -4/Hub_04(d) | System corruption reached 30% 26130 | -4/Hub_04(d) | Core integrity fell below 50% 26130 | -4/Hub_04(d) | Destroyed Lightning 26140 | -4/Hub_04(d) | Destroyed Lightning 26180 | -4/Hub_04(d) | Found Prototype Energy Cannon 26206 | -4/Hub_04(d) | Destroyed Lightning 26215 | -4/Hub_04(d) | Found Exp. Targeting Computer 26237 | -4/Hub_04(d) | Entered Research 26237 | -3/Research | Evolved 2 slots: Utility x2 26272 | -3/Research | Discovered new exit (range 12) 26303 | -3/Research | Identified exit to Quarantine 26358 | -3/Research | Build established: Scavenger-Gladiator 26603 | -3/Research | Lost 7 parts (2p2n2u1w) 26640 | -3/Research | Spotted B-86 Titan 26689 | -3/Research | Found Gamma Bomb Array 26737 | -3/Research | First assault squad dispatched 26757 | -3/Research | Incoming assault squad redirected 27010 | -3/Research | Incoming assault squad redirected 27141 | -3/Research | Incoming assault squad redirected 27157 | -3/Research | Incoming investigation squad redirected 27180 | -3/Research | Entered Quarantine 27204 | -3/Quarantine | Lost 3 parts (1n2u) 27413 | -3/Quarantine | Found Alien Energy Cannon 27567 | -3/Quarantine | Discovered new exit (range 3) 27570 | -3/Quarantine | Identified exit to Research 27623 | -3/Quarantine | Retrieved Zion intel report: Trap Installations 27701 | -3/Quarantine | Retrieved Zion intel report: Unaware Analyses 27780 | -3/Quarantine | Retrieved Zion intel report: Component Schematics 27905 | -3/Quarantine | Identified EMDS (x2) 27930 | -3/Quarantine | First assault squad dispatched 27951 | -3/Quarantine | Incoming assault squad redirected 28001 | -3/Quarantine | Retrieved Zion intel report: Unaware Analyses 28010 | -3/Quarantine | Retrieved Zion intel report: Prototype Stockpiles 28124 | -3/Quarantine | Found Alien Impact Weapon 28164 | -3/Quarantine | Found Alien Artifact 28205 | -3/Quarantine | Found Alien Artifact 28205 | -3/Quarantine | Identified Phase Redirector 28227 | -3/Quarantine | Retrieved Zion intel report: Branch Access 28321 | -3/Quarantine | Core integrity fell below 50% 28563 | -3/Quarantine | Entered Research 28563 | -2/Research | Evolved 2 slots: Utility x2 28587 | -2/Research | Lost 3 parts (1n2u) 29340 | -2/Research | First assault squad dispatched 29370 | -2/Research | Incoming assault squad redirected 29411 | -2/Research | Identified Core Stripper 29950 | -2/Research | Destroyed 7 combat bots 30017 | -2/Research | Terminal network hard line cut 30119 | -2/Research | Lost 6 parts (1p1n2u2w) 30367 | -2/Research | Incoming assault squad redirected 30431 | -2/Research | Found Fusion Bomb Launcher 30459 | -2/Research | System corruption reached 10% 30492 | -2/Research | Lost 4 parts (1n3u) 30556 | -2/Research | Discovered new exit (range 19) 30585 | -2/Research | Incoming assault squad redirected 30589 | -2/Research | Identified exit to Access 30593 | -2/Research | Identified Core Cannon 30966 | -2/Research | Discovered exit to Access (range 7) 30969 | -2/Research | Lost 4 parts (2p2u) 30972 | -2/Research | Entered Access 30972 | -1/Access | Evolved 2 slots: Propulsion x2 31057 | -1/Access | Retrieved Zion intel report: Branch Access 31057 | -1/Access | Identified exit to Command 31065 | -1/Access | Retrieved Zion intel report: Emergency Access 31066 | -1/Access | Zion Recon squad teleported in 31163 | -1/Access | Retrieved Zion intel report: Unaware Analyses 31225 | -1/Access | Retrieved Zion intel report: Guard Positions 31247 | -1/Access | Build established: Scavenger-Mutant 31252 | -1/Access | Identified Subatomic Replicator 31389 | -1/Access | Crushed by falling debris 31392 | -1/Access | Used Subatomic Replicator to replicate Impulse Thruster Array 31472 | -1/Access | First assault squad dispatched 31488 | -1/Access | Incoming investigation squad redirected 31502 | -1/Access | Fabricated Nuclear Pulse Array (x2) 31547 | -1/Access | Retrieved Zion intel report: Unaware Analyses 31549 | -1/Access | Discovered new exit (range 7) 31550 | -1/Access | Enhanced Grunt warped into view, answering call for help 31552 | -1/Access | Identified exit to Surface 31554 | -1/Access | Spotted B-99 Colossus 31558 | *** | Escaped! Last Messages --------------- 31549_ EXIT=FOUND 31549_ Beam penetrates Main Access Shell. 31550_ Enhanced Grunt warps into view. 31552_ EXIT=IDENTIFIED: SURFACE 31554_ Beam penetrates Sealed Heavy Doors. 31554_ Beam penetrates B-99 Colossus. 31554_ Beam penetrates Wall. 31554_ Adv. Reaction Control System destroyed. 31554_ Slug penetrates Sealed Heavy Doors. 31554_ Penetrated by Slug. 31556_ Acquired 2 matter. 31556_ Beam penetrates B-99 Colossus. 31556_ B-99 Colossus suffers critical hit (Destroy). 31556_ Destroyed Hvy. Insulated Plating. 31556_ Beam penetrates B-99 Colossus. 31557_ Overheating: Matter decay (-27). 31557_ Knocked back. 31557_ Slug penetrates Main Access Shell. 31557_ Penetrated by Slug. [Achievement: Derelict Escape] Map ----- +----------------------------------------------------+ | ?????????????????????????????????????????????????? | | ?????????????????????????????????????????+???????? | | ?????????????????????????????????????????????????? | | ?????????????????????????????????????????????????? | | ?????????????????????????????????????????????????? | | ?????????????????????????????????????????????????? | | ?????????????????????????????????????+???????????? | | ?????????????????????????????????????????????????? | | ???????????????????????? ??????????????????????? | | ???????????????????????? # ???????????????????? | | ???????????????????????? ???????????????????? | | ???????????????????????? ????????????????????? | | ???????????????????????? ????????????????????? | | ???????????????????????? ????????????????????? | | ?????????????????????BB? B ????????????????????? | | ?????????????????????BB? B?????????????????????? | | ???????????????????????? ?????????????????????? | | ????????????????????????" ?????????????????????? | | ????????????????????????" "?????????????????????? | | ????????????????????????" "?????????????????????? | | ???????????????????????"" ??????????????????????? | | ???????????????????????? ??????????????????????? | | ??????????????????????""" ""?????????????????????? | | ??????????????????????" "?????????????????????? | | ???? ????????????????"%"" "??#??????????????????? | | ???? ?????????????#??" "@ "? #??????????????????? | | ???? ?????????????# ?" " #??????????????????? | | ???# +????????????# """ "" #??????????????????? | | ???# #????????????# #??????????????????? | | ???# #????????????# #??????????????????? | | ???# #????????????"""""" """""??????????????????? | | ???# #????????????#"" g #??????????????????? | | ???# #????????????#"" #??????????????????? | | ???# #????????????#"" #??????????????????? | | ???# #????????????#T #??????????????????? | | ???# #??????Y?????#"" #???????w??????????? | | ???# #????????????#""p! #??????????????????? | | ???# ##############"" == ###????????????????? | | ???+ *= R ???????????? | | ???# | R ???????????? | | ???# ########+####################+#????????????? | | ???# #?????? ?????????????????????????????????? | | ???# #?????? ?????????????????????????????????? | | #+## #?????" ????????????????????????????????? | | # ##????"" ????????????????????????????????? | | # +??? """ #???????????????????????????????? | | ##??? " #???????????????????????????????? | | #+##+##??? #???????????????????????????????? | | ?????? #???????????????????????????????? | | ?????#######???????????????????????????????? | +----------------------------------------------------+ Best States ------------- Heat Dissipation 111 Energy Generation 59 Energy Capacity 1150 Matter Stores 300 Matter Capacity 300 Sight Range 20 Robot Scan Range 20 Terrain Scan Range 20 Terrain Scan Density 210 Additional Mass Support 9 Armor Coverage 1050 Resistance: KI 30 Resistance: TH 10 Resistance: EM 25 Propulsion Shielding 90 Weapon Shielding 100 Melee Speed Boost 50 Phase Shifting 10 Evasion (%) 75 Targeting Accuracy 32 Melee Accuracy 12 Recoil Reduction 6 Particle Charging 25 Offensive Hacking 26 Defensive Hacking 11 Trap Extractor Capacity 4 Item Schematics ----------------- Hcp. Storage Unit | -9/Materials | Hacked Huge Storage Unit | -9/Materials | Hacked Structural Scanner | -9/Materials | Hacked Trap Scanner | -8/Materials | Hacked Imp. Plasma Cutter | -7/Factory | Hacked Chainsword | -7/Zion | Archive Imp. Proton Missile Launcher | -7/Zion | Archive Energy Well | -7/Zion | Archive Hvy. Laser | -7/Zion | Archive 0b10 Decoder Chip [Skirmisher] | -7/Zion | Archive System Restoration Module | -7/Zion | Archive Imp. Dynamic Insulation System | -7/Zion | Archive Matter Compressor | -7/Zion | Archive Hvy. Ion Cannon | -7/Zion | Archive Mak. Armor Plating | -7/Zion | Archive Hpw. Shock Rifle | -7/Zion | Archive Mak. Hammer | -7/Zion | Archive Flexi-carbon Leg | -7/Zion | Archive Coolant Injector | -7/Zion | Archive Imp. Recalibrator | -7/Zion | Archive Lrn. Phase Cannon | -7/Zion | Archive Imp. Heavy Laser | -6/Factory | Z-intel Imp. Lightning Gun | -6/Factory | Z-intel Cld. VTOL Module | -6/Factory | Z-intel Hvy. Particle Gun | -6/Factory | Z-intel Exp. Weapon Shielding | -6/Factory | Z-intel Mni. Assault Cannon | -6/Factory | Z-intel Cold Fusion Reactor | -6/Factory | Z-intel Exp. Utility Shielding | -6/Factory | Z-intel Gravity Neutralizer | -6/Factory | Z-intel Biomechanical Wings | -6/Factory | Z-intel Combat Drone Bay | -6/Data Miner | Free Lgt. Regenerative Plating | -6/Data Miner | Free Enh. Armored Leg | -6/Data Miner | Free Exp. Heat Sink | -6/Data Miner | Free Ionic Axe | -6/Data Miner | Free Imp. Heavy Treads | -6/Data Miner | Free Adv. Reaction Control System | -6/Data Miner | Free HERF Cannon | -6/Data Miner | Free Imp. Launcher Guidance Computer | -6/Data Miner | Free Impulse Thruster | -6/Data Miner | Free Antigrav Array | -6/Data Miner | Free Assault Drone Bay | -5/Zhirov | Free Exp. Optical Array | -5/Zhirov | Free Imp. Arc Thrower | -5/Zhirov | Free Exp. Cooling System | -4/Hub_04(d) | Z-intel Adv. EM Disruption Field | -4/Hub_04(d) | Z-intel Diametric Drive | -4/Hub_04(d) | Z-intel Adv. Myomer Leg | -4/Hub_04(d) | Z-intel Adv. KE Penetrator | -4/Hub_04(d) | Z-intel Hvy. Proton Missile Launcher | -4/Hub_04(d) | Z-intel Lgt. Antimatter Cannon | -4/Hub_04(d) | Z-intel Enh. Armored Medium Treads | -4/Hub_04(d) | Z-intel Centrium Greatsword | -4/Hub_04(d) | Z-intel Hvy. Tesla Rifle | -4/Hub_04(d) | Z-intel Proton Burst Cannon | -4/Hub_04(d) | Z-intel Imp. Heavy Machine Gun | -4/Hub_04(d) | Z-intel Adv. Matter Compressor | -4/Hub_04(d) | Z-intel Exp. Hacking Suite | -4/Hub_04(d) | Z-intel Adv. Dynamic Insulation System | -4/Hub_04(d) | Z-intel Enh. Fission Core | -4/Hub_04(d) | Z-intel Neutron Missile Launcher | -4/Hub_04(d) | Z-intel Exp. Signal Interpreter | -4/Hub_04(d) | Z-intel Enh. Coil Gun | -4/Hub_04(d) | Z-intel Tesla Bomb Launcher | -4/Hub_04(d) | Z-intel Exp. Terrain Scan Processor | -4/Hub_04(d) | Z-intel Particle Accelerator | -4/Hub_04(d) | Z-intel Adv. Datajack | -3/Quarantine | Z-intel Imp. Arc Projector | -3/Quarantine | Z-intel Nuclear Pulse Array | -3/Quarantine | Z-intel Particle Reactor | -3/Quarantine | Z-intel Adv. Melee Analysis Suite | -3/Quarantine | Z-intel Adv. Power Amplifier | -3/Quarantine | Z-intel Force Lance | -3/Quarantine | Z-intel Railgun | -3/Quarantine | Z-intel Reaction Control System | -3/Quarantine | Z-intel Gamma Bomb Array | -3/Quarantine | Z-intel Hardcell Cannon | -3/Quarantine | Z-intel Plasma Cutter | -3/Quarantine | Z-intel Imp. Linear Gravjet | -3/Quarantine | Z-intel Adv. Corruption Screen | -3/Quarantine | Z-intel Robot Schematics ------------------ B-48 Gladiator | -7/Zion | Archive R-06 Scavenger | -7/Zion | Archive K-01 Serf | -7/Zion | Archive G-50 Soldier | -6/Data Miner | Free Y-64 Sentinel | -6/Data Miner | Free B-60 Warrior | -6/Data Miner | Free A-02 Transporter | -4/Hub_04(d) | Z-intel T-07 Excavator | -4/Hub_04(d) | Z-intel L-61 Swordsman | -4/Hub_04(d) | Z-intel Fabricated ------------ Exp. Weapon Shielding | x1 | -5/Factory Nuclear Pulse Array | x2 | -1/Access Alien Tech Used ----------------- Core Expander Integrated Reactor Phase Redirector Core Stripper Core Cannon Subatomic Replicator Achievements -------------- Derelict Escape Challenges ------------ None Game ------ Seed CouplerGreatShredder Manual? 0 Play Time 07:37:36 Cumulative 495.8 hours Start 2022.03.29 @ 01:08:01 End 2022.03.30 @ 15:42:50 Sessions 8 Manual Loads 0 Difficulty Rogue Special Mode None Game No. 156 Rogue 152 Adventurer 4 Explorer 0 Win Type 0 Total 12 Types 6/2/3/0/0/0/0/1/0 Lore% 80 Gallery% 84 Achievement% 70 Wizard Run 0 Options --------- ASCII 1 Keyboard 0 Movement Arrows Keybinds 0 Fullscreen 1 Font 18/SmallcapsGlow Map View 76x50 Tactical HUD 1 Map Filters NONE Filters NONE Steam 1 RUN: 05d27919-d957-44f3-86be-c7d1f7d3b3d8